{"text_format":"3","workbook":"xlsx","n_sheets":4,"sheets":["YB BÜTÇE ÖZETİ","AYLIK GİDERLER ÖZETİ","GİDER DÖKÜMÜ","HAYIR İŞLERİ VE SPONSORLUKLAR"],"not_rendered":{"defined_names":15},"read":"whole","date_system":"1900"}

{"sheet":"YB BÜTÇE ÖZETİ","index":0,"n_rows":17,"n_cols":7,"rows_kept":17,"merged":[[1,1,1,4]]}
[null,"AYLIK GİDERLER ÖZETİ"]
[null,"FİİLİ - BÜTÇE YB",{"$nulls":3},"yıl",{"$f":"YEAR(TODAY())","v":2019}]
[]
[null,"GM Kodu","Hesap Başlığı","Fiili","Bütçe","Kalan ₺","Kalan %"]
[null,1000,"Reklam",{"$f":"SUMIF(AylıkGiderlerÖzeti[GM Kodu],YılbaşındanBugüneTablosu[[#This Row],[GM Kodu]],AylıkGiderlerÖzeti[Toplam])","v":{"v":0,"d":"0.00 ₺"}},{"v":100000,"d":"100,000.00 ₺"},{"$f":"IF(YılbaşındanBugüneTablosu[[#This Row],[Bütçe]]=\"\",\"\",YılbaşındanBugüneTablosu[[#This Row],[Bütçe]]-YılbaşındanBugüneTablosu[[#This Row],[Fiili]])","v":{"v":100000,"d":"100,000.00 ₺"}},{"$f":"IFERROR(YılbaşındanBugüneTablosu[[#This Row],[Kalan ₺]]/YılbaşındanBugüneTablosu[[#This Row],[Bütçe]],\"\")","v":{"v":1,"d":"100.00%"}}]
[null,2000,"Ofis Ekipmanları",{"$f":"SUMIF(AylıkGiderlerÖzeti[GM Kodu],YılbaşındanBugüneTablosu[[#This Row],[GM Kodu]],AylıkGiderlerÖzeti[Toplam])","v":{"v":0,"d":"0.00 ₺"}},{"v":100000,"d":"100,000.00 ₺"},{"$f":"IF(YılbaşındanBugüneTablosu[[#This Row],[Bütçe]]=\"\",\"\",YılbaşındanBugüneTablosu[[#This Row],[Bütçe]]-YılbaşındanBugüneTablosu[[#This Row],[Fiili]])","v":{"v":100000,"d":"100,000.00 ₺"}},{"$f":"IFERROR(YılbaşındanBugüneTablosu[[#This Row],[Kalan ₺]]/YılbaşındanBugüneTablosu[[#This Row],[Bütçe]],\"\")","v":{"v":1,"d":"100.00%"}}]
[null,3000,"Yazıcılar",{"$f":"SUMIF(AylıkGiderlerÖzeti[GM Kodu],YılbaşındanBugüneTablosu[[#This Row],[GM Kodu]],AylıkGiderlerÖzeti[Toplam])","v":{"v":0,"d":"0.00 ₺"}},{"v":100000,"d":"100,000.00 ₺"},{"$f":"IF(YılbaşındanBugüneTablosu[[#This Row],[Bütçe]]=\"\",\"\",YılbaşındanBugüneTablosu[[#This Row],[Bütçe]]-YılbaşındanBugüneTablosu[[#This Row],[Fiili]])","v":{"v":100000,"d":"100,000.00 ₺"}},{"$f":"IFERROR(YılbaşındanBugüneTablosu[[#This Row],[Kalan ₺]]/YılbaşındanBugüneTablosu[[#This Row],[Bütçe]],\"\")","v":{"v":1,"d":"100.00%"}}]
[null,4000,"Sunucu Maliyetleri",{"$f":"SUMIF(AylıkGiderlerÖzeti[GM Kodu],YılbaşındanBugüneTablosu[[#This Row],[GM Kodu]],AylıkGiderlerÖzeti[Toplam])","v":{"v":0,"d":"0.00 ₺"}},{"v":100000,"d":"100,000.00 ₺"},{"$f":"IF(YılbaşındanBugüneTablosu[[#This Row],[Bütçe]]=\"\",\"\",YılbaşındanBugüneTablosu[[#This Row],[Bütçe]]-YılbaşındanBugüneTablosu[[#This Row],[Fiili]])","v":{"v":100000,"d":"100,000.00 ₺"}},{"$f":"IFERROR(YılbaşındanBugüneTablosu[[#This Row],[Kalan ₺]]/YılbaşındanBugüneTablosu[[#This Row],[Bütçe]],\"\")","v":{"v":1,"d":"100.00%"}}]
[null,5000,"Diğer Malzemeler",{"$f":"SUMIF(AylıkGiderlerÖzeti[GM Kodu],YılbaşındanBugüneTablosu[[#This Row],[GM Kodu]],AylıkGiderlerÖzeti[Toplam])","v":{"v":0,"d":"0.00 ₺"}},{"v":50000,"d":"50,000.00 ₺"},{"$f":"IF(YılbaşındanBugüneTablosu[[#This Row],[Bütçe]]=\"\",\"\",YılbaşındanBugüneTablosu[[#This Row],[Bütçe]]-YılbaşındanBugüneTablosu[[#This Row],[Fiili]])","v":{"v":50000,"d":"50,000.00 ₺"}},{"$f":"IFERROR(YılbaşındanBugüneTablosu[[#This Row],[Kalan ₺]]/YılbaşındanBugüneTablosu[[#This Row],[Bütçe]],\"\")","v":{"v":1,"d":"100.00%"}}]
[null,6000,"Müşteri Giderleri",{"$f":"SUMIF(AylıkGiderlerÖzeti[GM Kodu],YılbaşındanBugüneTablosu[[#This Row],[GM Kodu]],AylıkGiderlerÖzeti[Toplam])","v":{"v":0,"d":"0.00 ₺"}},{"v":25000,"d":"25,000.00 ₺"},{"$f":"IF(YılbaşındanBugüneTablosu[[#This Row],[Bütçe]]=\"\",\"\",YılbaşındanBugüneTablosu[[#This Row],[Bütçe]]-YılbaşındanBugüneTablosu[[#This Row],[Fiili]])","v":{"v":25000,"d":"25,000.00 ₺"}},{"$f":"IFERROR(YılbaşındanBugüneTablosu[[#This Row],[Kalan ₺]]/YılbaşındanBugüneTablosu[[#This Row],[Bütçe]],\"\")","v":{"v":1,"d":"100.00%"}}]
[null,7000,"Bilgisayarlar",{"$f":"SUMIF(AylıkGiderlerÖzeti[GM Kodu],YılbaşındanBugüneTablosu[[#This Row],[GM Kodu]],AylıkGiderlerÖzeti[Toplam])","v":{"v":0,"d":"0.00 ₺"}},{"v":75000,"d":"75,000.00 ₺"},{"$f":"IF(YılbaşındanBugüneTablosu[[#This Row],[Bütçe]]=\"\",\"\",YılbaşındanBugüneTablosu[[#This Row],[Bütçe]]-YılbaşındanBugüneTablosu[[#This Row],[Fiili]])","v":{"v":75000,"d":"75,000.00 ₺"}},{"$f":"IFERROR(YılbaşındanBugüneTablosu[[#This Row],[Kalan ₺]]/YılbaşındanBugüneTablosu[[#This Row],[Bütçe]],\"\")","v":{"v":1,"d":"100.00%"}}]
[null,8000,"Sağlık Planı",{"$f":"SUMIF(AylıkGiderlerÖzeti[GM Kodu],YılbaşındanBugüneTablosu[[#This Row],[GM Kodu]],AylıkGiderlerÖzeti[Toplam])","v":{"v":0,"d":"0.00 ₺"}},{"v":65000,"d":"65,000.00 ₺"},{"$f":"IF(YılbaşındanBugüneTablosu[[#This Row],[Bütçe]]=\"\",\"\",YılbaşındanBugüneTablosu[[#This Row],[Bütçe]]-YılbaşındanBugüneTablosu[[#This Row],[Fiili]])","v":{"v":65000,"d":"65,000.00 ₺"}},{"$f":"IFERROR(YılbaşındanBugüneTablosu[[#This Row],[Kalan ₺]]/YılbaşındanBugüneTablosu[[#This Row],[Bütçe]],\"\")","v":{"v":1,"d":"100.00%"}}]
[null,9000,"Bina Maliyetleri",{"$f":"SUMIF(AylıkGiderlerÖzeti[GM Kodu],YılbaşındanBugüneTablosu[[#This Row],[GM Kodu]],AylıkGiderlerÖzeti[Toplam])","v":{"v":0,"d":"0.00 ₺"}},{"v":125000,"d":"125,000.00 ₺"},{"$f":"IF(YılbaşındanBugüneTablosu[[#This Row],[Bütçe]]=\"\",\"\",YılbaşındanBugüneTablosu[[#This Row],[Bütçe]]-YılbaşındanBugüneTablosu[[#This Row],[Fiili]])","v":{"v":125000,"d":"125,000.00 ₺"}},{"$f":"IFERROR(YılbaşındanBugüneTablosu[[#This Row],[Kalan ₺]]/YılbaşındanBugüneTablosu[[#This Row],[Bütçe]],\"\")","v":{"v":1,"d":"100.00%"}}]
[null,10000,"Pazarlama",{"$f":"SUMIF(AylıkGiderlerÖzeti[GM Kodu],YılbaşındanBugüneTablosu[[#This Row],[GM Kodu]],AylıkGiderlerÖzeti[Toplam])","v":{"v":0,"d":"0.00 ₺"}},{"v":100000,"d":"100,000.00 ₺"},{"$f":"IF(YılbaşındanBugüneTablosu[[#This Row],[Bütçe]]=\"\",\"\",YılbaşındanBugüneTablosu[[#This Row],[Bütçe]]-YılbaşındanBugüneTablosu[[#This Row],[Fiili]])","v":{"v":100000,"d":"100,000.00 ₺"}},{"$f":"IFERROR(YılbaşındanBugüneTablosu[[#This Row],[Kalan ₺]]/YılbaşındanBugüneTablosu[[#This Row],[Bütçe]],\"\")","v":{"v":1,"d":"100.00%"}}]
[null,11000,"Hayır İşleri",{"$f":"SUMIF(AylıkGiderlerÖzeti[GM Kodu],YılbaşındanBugüneTablosu[[#This Row],[GM Kodu]],AylıkGiderlerÖzeti[Toplam])","v":{"v":0,"d":"0.00 ₺"}},{"v":250000,"d":"250,000.00 ₺"},{"$f":"IF(YılbaşındanBugüneTablosu[[#This Row],[Bütçe]]=\"\",\"\",YılbaşındanBugüneTablosu[[#This Row],[Bütçe]]-YılbaşındanBugüneTablosu[[#This Row],[Fiili]])","v":{"v":250000,"d":"250,000.00 ₺"}},{"$f":"IFERROR(YılbaşındanBugüneTablosu[[#This Row],[Kalan ₺]]/YılbaşındanBugüneTablosu[[#This Row],[Bütçe]],\"\")","v":{"v":1,"d":"100.00%"}}]
[null,12000,"Sponsorluklar",{"$f":"SUMIF(AylıkGiderlerÖzeti[GM Kodu],YılbaşındanBugüneTablosu[[#This Row],[GM Kodu]],AylıkGiderlerÖzeti[Toplam])","v":{"v":0,"d":"0.00 ₺"}},{"v":50000,"d":"50,000.00 ₺"},{"$f":"IF(YılbaşındanBugüneTablosu[[#This Row],[Bütçe]]=\"\",\"\",YılbaşındanBugüneTablosu[[#This Row],[Bütçe]]-YılbaşındanBugüneTablosu[[#This Row],[Fiili]])","v":{"v":50000,"d":"50,000.00 ₺"}},{"$f":"IFERROR(YılbaşındanBugüneTablosu[[#This Row],[Kalan ₺]]/YılbaşındanBugüneTablosu[[#This Row],[Bütçe]],\"\")","v":{"v":1,"d":"100.00%"}}]
[null,"Toplam",null,{"$f":"SUBTOTAL(109,YılbaşındanBugüneTablosu[Fiili])","v":{"v":0,"d":"0.00 ₺"}},{"$f":"SUBTOTAL(109,YılbaşındanBugüneTablosu[Bütçe])","v":{"v":1140000,"d":"1,140,000.00 ₺"}},{"$f":"SUBTOTAL(109,YılbaşındanBugüneTablosu[Kalan ₺])","v":{"v":1140000,"d":"1,140,000.00 ₺"}},{"$f":"YılbaşındanBugüneTablosu[[#Totals],[Kalan ₺]]/YılbaşındanBugüneTablosu[[#Totals],[Bütçe]]","v":{"v":1,"d":"100.00%"}}]

{"sheet":"AYLIK GİDERLER ÖZETİ","index":1,"n_rows":18,"n_cols":17,"rows_kept":18,"merged":[[1,1,1,16]]}
[null,"YB BÜTÇE ÖZETİ","GİDER DÖKÜMÜ"]
[null,"AYLIK GİDERLER ÖZETİ"]
[null,"Verileri Hesap Başlıklarına göre filtreleyecek dilimleyici bu hücrededir.",null,{"$f":"DATEVALUE(\"1-OCA\"&_YIL)","v":{"v":43466,"d":"4346600.00%"}},{"$f":"DATEVALUE(\"1-ŞUB\"&_YIL)","v":{"v":43497,"d":"4349700.00%"}},{"$f":"DATEVALUE(\"1-MAR\"&_YIL)","v":{"v":43525,"d":"4352500.00%"}},{"$f":"DATEVALUE(\"1-NİS\"&_YIL)","v":{"v":43556,"d":"4355600.00%"}},{"$f":"DATEVALUE(\"1-MAY\"&_YIL)","v":{"v":43586,"d":"4358600.00%"}},{"$f":"DATEVALUE(\"1-HAZ\"&_YIL)","v":{"v":43617,"d":"4361700.00%"}},{"$f":"DATEVALUE(\"1-TEM\"&_YIL)","v":{"v":43647,"d":"4364700.00%"}},{"$f":"DATEVALUE(\"1-AĞU\"&_YIL)","v":{"v":43678,"d":"4367800.00%"}},{"$f":"DATEVALUE(\"1-EYL\"&_YIL)","v":{"v":43709,"d":"4370900.00%"}},{"$f":"DATEVALUE(\"1-EKİ\"&_YIL)","v":{"v":43739,"d":"4373900.00%"}},{"$f":"DATEVALUE(\"1-KAS\"&_YIL)","v":{"v":43770,"d":"4377000.00%"}},{"$f":"DATEVALUE(\"1-ARA\"&_YIL)","v":{"v":43800,"d":"4380000.00%"}}]
[{"$nulls":3},{"$f":"EOMONTH(D3,0)","v":{"v":43496,"d":"4349600.00%"}},{"$f":"EOMONTH(E3,0)","v":{"v":43524,"d":"4352400.00%"}},{"$f":"EOMONTH(F3,0)","v":{"v":43555,"d":"4355500.00%"}},{"$f":"EOMONTH(G3,0)","v":{"v":43585,"d":"4358500.00%"}},{"$f":"EOMONTH(H3,0)","v":{"v":43616,"d":"4361600.00%"}},{"$f":"EOMONTH(I3,0)","v":{"v":43646,"d":"4364600.00%"}},{"v":43677,"d":"4367700.00%"},{"v":43708,"d":"4370800.00%"},{"v":43738,"d":"4373800.00%"},{"v":43769,"d":"4376900.00%"},{"v":43799,"d":"4379900.00%"},{"v":43830,"d":"4383000.00%"}]
[null,"GM Kodu","Hesap Başlığı","Ocak","Şubat","Mart","Nisan","Mayıs","Haziran","Temmuz","Ağustos","Eylül","Ekim","Kasım","Aralık","Toplam"," "]
[null,1000,"Reklam",{"$f":"SUMIFS(GiderlerDökümü[Çek Tutarı],GiderlerDökümü[GM Kodu],AylıkGiderlerÖzeti[[#This Row],[GM Kodu]],GiderlerDökümü[Fatura Tarihi],\">=\"&D$3,GiderlerDökümü[Fatura Tarihi],\"<=\"&D$4)+SUMIFS(Diğer[Çek Tutarı],Diğer[GM Kodu],AylıkGiderlerÖzeti[[#This Row],[GM Kodu]],Diğer[Çek İsteğinin Başlangıç Tarihi],\">=\"&DATEVALUE(\"1.\"&AylıkGiderlerÖzeti[[#Headers],[Ocak]]&_xlfn.SINGLE(_YIL)),Diğer[Çek İsteğinin Başlangıç Tarihi],\"<=\"&D$4)","v":{"v":0,"d":"0.00 ₺"}},{"$f":"SUMIFS(GiderlerDökümü[Çek Tutarı],GiderlerDökümü[GM Kodu],AylıkGiderlerÖzeti[[#This Row],[GM Kodu]],GiderlerDökümü[Fatura Tarihi],\">=\"&E$3,GiderlerDökümü[Fatura Tarihi],\"<=\"&E$4)+SUMIFS(Diğer[Çek Tutarı],Diğer[GM Kodu],AylıkGiderlerÖzeti[[#This Row],[GM Kodu]],Diğer[Çek İsteğinin Başlangıç Tarihi],\">=\"&DATEVALUE(\"1.\"&AylıkGiderlerÖzeti[[#Headers],[Şubat]]&_xlfn.SINGLE(_YIL)),Diğer[Çek İsteğinin Başlangıç Tarihi],\"<=\"&E$4)","v":{"v":0,"d":"0.00 ₺"}},{"$f":"SUMIFS(GiderlerDökümü[Çek Tutarı],GiderlerDökümü[GM Kodu],AylıkGiderlerÖzeti[[#This Row],[GM Kodu]],GiderlerDökümü[Fatura Tarihi],\">=\"&F$3,GiderlerDökümü[Fatura Tarihi],\"<=\"&F$4)+SUMIFS(Diğer[Çek Tutarı],Diğer[GM Kodu],AylıkGiderlerÖzeti[[#This Row],[GM Kodu]],Diğer[Çek İsteğinin Başlangıç Tarihi],\">=\"&DATEVALUE(\"1.\"&AylıkGiderlerÖzeti[[#Headers],[Mart]]&_xlfn.SINGLE(_YIL)),Diğer[Çek İsteğinin Başlangıç Tarihi],\"<=\"&F$4)","v":{"v":0,"d":"0.00 ₺"}},{"$f":"SUMIFS(GiderlerDökümü[Çek Tutarı],GiderlerDökümü[GM Kodu],AylıkGiderlerÖzeti[[#This Row],[GM Kodu]],GiderlerDökümü[Fatura Tarihi],\">=\"&G$3,GiderlerDökümü[Fatura Tarihi],\"<=\"&G$4)+SUMIFS(Diğer[Çek Tutarı],Diğer[GM Kodu],AylıkGiderlerÖzeti[[#This Row],[GM Kodu]],Diğer[Çek İsteğinin Başlangıç Tarihi],\">=\"&DATEVALUE(\"1.\"&AylıkGiderlerÖzeti[[#Headers],[Nisan]]&_xlfn.SINGLE(_YIL)),Diğer[Çek İsteğinin Başlangıç Tarihi],\"<=\"&G$4)","v":{"v":0,"d":"0.00 ₺"}},{"$f":"SUMIFS(GiderlerDökümü[Çek Tutarı],GiderlerDökümü[GM Kodu],AylıkGiderlerÖzeti[[#This Row],[GM Kodu]],GiderlerDökümü[Fatura Tarihi],\">=\"&H$3,GiderlerDökümü[Fatura Tarihi],\"<=\"&H$4)+SUMIFS(Diğer[Çek Tutarı],Diğer[GM Kodu],AylıkGiderlerÖzeti[[#This Row],[GM Kodu]],Diğer[Çek İsteğinin Başlangıç Tarihi],\">=\"&DATEVALUE(\"1.\"&AylıkGiderlerÖzeti[[#Headers],[Mayıs]]&_xlfn.SINGLE(_YIL)),Diğer[Çek İsteğinin Başlangıç Tarihi],\"<=\"&H$4)","v":{"v":0,"d":"0.00 ₺"}},{"$f":"SUMIFS(GiderlerDökümü[Çek Tutarı],GiderlerDökümü[GM Kodu],AylıkGiderlerÖzeti[[#This Row],[GM Kodu]],GiderlerDökümü[Fatura Tarihi],\">=\"&I$3,GiderlerDökümü[Fatura Tarihi],\"<=\"&I$4)+SUMIFS(Diğer[Çek Tutarı],Diğer[GM Kodu],AylıkGiderlerÖzeti[[#This Row],[GM Kodu]],Diğer[Çek İsteğinin Başlangıç Tarihi],\">=\"&DATEVALUE(\"1.\"&AylıkGiderlerÖzeti[[#Headers],[Haziran]]&_xlfn.SINGLE(_YIL)),Diğer[Çek İsteğinin Başlangıç Tarihi],\"<=\"&I$4)","v":{"v":0,"d":"0.00 ₺"}},{"$f":"SUMIFS(GiderlerDökümü[Çek Tutarı],GiderlerDökümü[GM Kodu],AylıkGiderlerÖzeti[[#This Row],[GM Kodu]],GiderlerDökümü[Fatura Tarihi],\">=\"&J$3,GiderlerDökümü[Fatura Tarihi],\"<=\"&J$4)+SUMIFS(Diğer[Çek Tutarı],Diğer[GM Kodu],AylıkGiderlerÖzeti[[#This Row],[GM Kodu]],Diğer[Çek İsteğinin Başlangıç Tarihi],\">=\"&DATEVALUE(\"1.\"&AylıkGiderlerÖzeti[[#Headers],[Temmuz]]&_xlfn.SINGLE(_YIL)),Diğer[Çek İsteğinin Başlangıç Tarihi],\"<=\"&J$4)","v":{"v":0,"d":"0.00 ₺"}},{"$f":"SUMIFS(GiderlerDökümü[Çek Tutarı],GiderlerDökümü[GM Kodu],AylıkGiderlerÖzeti[[#This Row],[GM Kodu]],GiderlerDökümü[Fatura Tarihi],\">=\"&K$3,GiderlerDökümü[Fatura Tarihi],\"<=\"&K$4)+SUMIFS(Diğer[Çek Tutarı],Diğer[GM Kodu],AylıkGiderlerÖzeti[[#This Row],[GM Kodu]],Diğer[Çek İsteğinin Başlangıç Tarihi],\">=\"&DATEVALUE(\"1.\"&AylıkGiderlerÖzeti[[#Headers],[Ağustos]]&_xlfn.SINGLE(_YIL)),Diğer[Çek İsteğinin Başlangıç Tarihi],\"<=\"&K$4)","v":{"v":0,"d":"0.00 ₺"}},{"$f":"SUMIFS(GiderlerDökümü[Çek Tutarı],GiderlerDökümü[GM Kodu],AylıkGiderlerÖzeti[[#This Row],[GM Kodu]],GiderlerDökümü[Fatura Tarihi],\">=\"&L$3,GiderlerDökümü[Fatura Tarihi],\"<=\"&L$4)+SUMIFS(Diğer[Çek Tutarı],Diğer[GM Kodu],AylıkGiderlerÖzeti[[#This Row],[GM Kodu]],Diğer[Çek İsteğinin Başlangıç Tarihi],\">=\"&DATEVALUE(\"1.\"&AylıkGiderlerÖzeti[[#Headers],[Eylül]]&_xlfn.SINGLE(_YIL)),Diğer[Çek İsteğinin Başlangıç Tarihi],\"<=\"&L$4)","v":{"v":0,"d":"0.00 ₺"}},{"$f":"SUMIFS(GiderlerDökümü[Çek Tutarı],GiderlerDökümü[GM Kodu],AylıkGiderlerÖzeti[[#This Row],[GM Kodu]],GiderlerDökümü[Fatura Tarihi],\">=\"&M$3,GiderlerDökümü[Fatura Tarihi],\"<=\"&M$4)+SUMIFS(Diğer[Çek Tutarı],Diğer[GM Kodu],AylıkGiderlerÖzeti[[#This Row],[GM Kodu]],Diğer[Çek İsteğinin Başlangıç Tarihi],\">=\"&DATEVALUE(\"1.\"&AylıkGiderlerÖzeti[[#Headers],[Ekim]]&_xlfn.SINGLE(_YIL)),Diğer[Çek İsteğinin Başlangıç Tarihi],\"<=\"&M$4)","v":{"v":0,"d":"0.00 ₺"}},{"$f":"SUMIFS(GiderlerDökümü[Çek Tutarı],GiderlerDökümü[GM Kodu],AylıkGiderlerÖzeti[[#This Row],[GM Kodu]],GiderlerDökümü[Fatura Tarihi],\">=\"&N$3,GiderlerDökümü[Fatura Tarihi],\"<=\"&N$4)+SUMIFS(Diğer[Çek Tutarı],Diğer[GM Kodu],AylıkGiderlerÖzeti[[#This Row],[GM Kodu]],Diğer[Çek İsteğinin Başlangıç Tarihi],\">=\"&DATEVALUE(\"1.\"&AylıkGiderlerÖzeti[[#Headers],[Kasım]]&_xlfn.SINGLE(_YIL)),Diğer[Çek İsteğinin Başlangıç Tarihi],\"<=\"&N$4)","v":{"v":0,"d":"0.00 ₺"}},{"$f":"SUMIFS(GiderlerDökümü[Çek Tutarı],GiderlerDökümü[GM Kodu],AylıkGiderlerÖzeti[[#This Row],[GM Kodu]],GiderlerDökümü[Fatura Tarihi],\">=\"&O$3,GiderlerDökümü[Fatura Tarihi],\"<=\"&O$4)+SUMIFS(Diğer[Çek Tutarı],Diğer[GM Kodu],AylıkGiderlerÖzeti[[#This Row],[GM Kodu]],Diğer[Çek İsteğinin Başlangıç Tarihi],\">=\"&DATEVALUE(\"1.\"&AylıkGiderlerÖzeti[[#Headers],[Aralık]]&_xlfn.SINGLE(_YIL)),Diğer[Çek İsteğinin Başlangıç Tarihi],\"<=\"&O$4)","v":{"v":0,"d":"0.00 ₺"}},{"$f":"SUM(AylıkGiderlerÖzeti[[#This Row],[Ocak]:[Aralık]])","v":{"v":0,"d":"0.00 ₺"}}]
[null,2000,"Ofis Ekipmanları",{"$f":"SUMIFS(GiderlerDökümü[Çek Tutarı],GiderlerDökümü[GM Kodu],AylıkGiderlerÖzeti[[#This Row],[GM Kodu]],GiderlerDökümü[Fatura Tarihi],\">=\"&D$3,GiderlerDökümü[Fatura Tarihi],\"<=\"&D$4)+SUMIFS(Diğer[Çek Tutarı],Diğer[GM Kodu],AylıkGiderlerÖzeti[[#This Row],[GM Kodu]],Diğer[Çek İsteğinin Başlangıç Tarihi],\">=\"&DATEVALUE(\"1.\"&AylıkGiderlerÖzeti[[#Headers],[Ocak]]&_xlfn.SINGLE(_YIL)),Diğer[Çek İsteğinin Başlangıç Tarihi],\"<=\"&D$4)","v":{"v":0,"d":"0.00 ₺"}},{"$f":"SUMIFS(GiderlerDökümü[Çek Tutarı],GiderlerDökümü[GM Kodu],AylıkGiderlerÖzeti[[#This Row],[GM Kodu]],GiderlerDökümü[Fatura Tarihi],\">=\"&E$3,GiderlerDökümü[Fatura Tarihi],\"<=\"&E$4)+SUMIFS(Diğer[Çek Tutarı],Diğer[GM Kodu],AylıkGiderlerÖzeti[[#This Row],[GM Kodu]],Diğer[Çek İsteğinin Başlangıç Tarihi],\">=\"&DATEVALUE(\"1.\"&AylıkGiderlerÖzeti[[#Headers],[Şubat]]&_xlfn.SINGLE(_YIL)),Diğer[Çek İsteğinin Başlangıç Tarihi],\"<=\"&E$4)","v":{"v":0,"d":"0.00 ₺"}},{"$f":"SUMIFS(GiderlerDökümü[Çek Tutarı],GiderlerDökümü[GM Kodu],AylıkGiderlerÖzeti[[#This Row],[GM Kodu]],GiderlerDökümü[Fatura Tarihi],\">=\"&F$3,GiderlerDökümü[Fatura Tarihi],\"<=\"&F$4)+SUMIFS(Diğer[Çek Tutarı],Diğer[GM Kodu],AylıkGiderlerÖzeti[[#This Row],[GM Kodu]],Diğer[Çek İsteğinin Başlangıç Tarihi],\">=\"&DATEVALUE(\"1.\"&AylıkGiderlerÖzeti[[#Headers],[Mart]]&_xlfn.SINGLE(_YIL)),Diğer[Çek İsteğinin Başlangıç Tarihi],\"<=\"&F$4)","v":{"v":0,"d":"0.00 ₺"}},{"$f":"SUMIFS(GiderlerDökümü[Çek Tutarı],GiderlerDökümü[GM Kodu],AylıkGiderlerÖzeti[[#This Row],[GM Kodu]],GiderlerDökümü[Fatura Tarihi],\">=\"&G$3,GiderlerDökümü[Fatura Tarihi],\"<=\"&G$4)+SUMIFS(Diğer[Çek Tutarı],Diğer[GM Kodu],AylıkGiderlerÖzeti[[#This Row],[GM Kodu]],Diğer[Çek İsteğinin Başlangıç Tarihi],\">=\"&DATEVALUE(\"1.\"&AylıkGiderlerÖzeti[[#Headers],[Nisan]]&_xlfn.SINGLE(_YIL)),Diğer[Çek İsteğinin Başlangıç Tarihi],\"<=\"&G$4)","v":{"v":0,"d":"0.00 ₺"}},{"$f":"SUMIFS(GiderlerDökümü[Çek Tutarı],GiderlerDökümü[GM Kodu],AylıkGiderlerÖzeti[[#This Row],[GM Kodu]],GiderlerDökümü[Fatura Tarihi],\">=\"&H$3,GiderlerDökümü[Fatura Tarihi],\"<=\"&H$4)+SUMIFS(Diğer[Çek Tutarı],Diğer[GM Kodu],AylıkGiderlerÖzeti[[#This Row],[GM Kodu]],Diğer[Çek İsteğinin Başlangıç Tarihi],\">=\"&DATEVALUE(\"1.\"&AylıkGiderlerÖzeti[[#Headers],[Mayıs]]&_xlfn.SINGLE(_YIL)),Diğer[Çek İsteğinin Başlangıç Tarihi],\"<=\"&H$4)","v":{"v":0,"d":"0.00 ₺"}},{"$f":"SUMIFS(GiderlerDökümü[Çek Tutarı],GiderlerDökümü[GM Kodu],AylıkGiderlerÖzeti[[#This Row],[GM Kodu]],GiderlerDökümü[Fatura Tarihi],\">=\"&I$3,GiderlerDökümü[Fatura Tarihi],\"<=\"&I$4)+SUMIFS(Diğer[Çek Tutarı],Diğer[GM Kodu],AylıkGiderlerÖzeti[[#This Row],[GM Kodu]],Diğer[Çek İsteğinin Başlangıç Tarihi],\">=\"&DATEVALUE(\"1.\"&AylıkGiderlerÖzeti[[#Headers],[Haziran]]&_xlfn.SINGLE(_YIL)),Diğer[Çek İsteğinin Başlangıç Tarihi],\"<=\"&I$4)","v":{"v":0,"d":"0.00 ₺"}},{"$f":"SUMIFS(GiderlerDökümü[Çek Tutarı],GiderlerDökümü[GM Kodu],AylıkGiderlerÖzeti[[#This Row],[GM Kodu]],GiderlerDökümü[Fatura Tarihi],\">=\"&J$3,GiderlerDökümü[Fatura Tarihi],\"<=\"&J$4)+SUMIFS(Diğer[Çek Tutarı],Diğer[GM Kodu],AylıkGiderlerÖzeti[[#This Row],[GM Kodu]],Diğer[Çek İsteğinin Başlangıç Tarihi],\">=\"&DATEVALUE(\"1.\"&AylıkGiderlerÖzeti[[#Headers],[Temmuz]]&_xlfn.SINGLE(_YIL)),Diğer[Çek İsteğinin Başlangıç Tarihi],\"<=\"&J$4)","v":{"v":0,"d":"0.00 ₺"}},{"$f":"SUMIFS(GiderlerDökümü[Çek Tutarı],GiderlerDökümü[GM Kodu],AylıkGiderlerÖzeti[[#This Row],[GM Kodu]],GiderlerDökümü[Fatura Tarihi],\">=\"&K$3,GiderlerDökümü[Fatura Tarihi],\"<=\"&K$4)+SUMIFS(Diğer[Çek Tutarı],Diğer[GM Kodu],AylıkGiderlerÖzeti[[#This Row],[GM Kodu]],Diğer[Çek İsteğinin Başlangıç Tarihi],\">=\"&DATEVALUE(\"1.\"&AylıkGiderlerÖzeti[[#Headers],[Ağustos]]&_xlfn.SINGLE(_YIL)),Diğer[Çek İsteğinin Başlangıç Tarihi],\"<=\"&K$4)","v":{"v":0,"d":"0.00 ₺"}},{"$f":"SUMIFS(GiderlerDökümü[Çek Tutarı],GiderlerDökümü[GM Kodu],AylıkGiderlerÖzeti[[#This Row],[GM Kodu]],GiderlerDökümü[Fatura Tarihi],\">=\"&L$3,GiderlerDökümü[Fatura Tarihi],\"<=\"&L$4)+SUMIFS(Diğer[Çek Tutarı],Diğer[GM Kodu],AylıkGiderlerÖzeti[[#This Row],[GM Kodu]],Diğer[Çek İsteğinin Başlangıç Tarihi],\">=\"&DATEVALUE(\"1.\"&AylıkGiderlerÖzeti[[#Headers],[Eylül]]&_xlfn.SINGLE(_YIL)),Diğer[Çek İsteğinin Başlangıç Tarihi],\"<=\"&L$4)","v":{"v":0,"d":"0.00 ₺"}},{"$f":"SUMIFS(GiderlerDökümü[Çek Tutarı],GiderlerDökümü[GM Kodu],AylıkGiderlerÖzeti[[#This Row],[GM Kodu]],GiderlerDökümü[Fatura Tarihi],\">=\"&M$3,GiderlerDökümü[Fatura Tarihi],\"<=\"&M$4)+SUMIFS(Diğer[Çek Tutarı],Diğer[GM Kodu],AylıkGiderlerÖzeti[[#This Row],[GM Kodu]],Diğer[Çek İsteğinin Başlangıç Tarihi],\">=\"&DATEVALUE(\"1.\"&AylıkGiderlerÖzeti[[#Headers],[Ekim]]&_xlfn.SINGLE(_YIL)),Diğer[Çek İsteğinin Başlangıç Tarihi],\"<=\"&M$4)","v":{"v":0,"d":"0.00 ₺"}},{"$f":"SUMIFS(GiderlerDökümü[Çek Tutarı],GiderlerDökümü[GM Kodu],AylıkGiderlerÖzeti[[#This Row],[GM Kodu]],GiderlerDökümü[Fatura Tarihi],\">=\"&N$3,GiderlerDökümü[Fatura Tarihi],\"<=\"&N$4)+SUMIFS(Diğer[Çek Tutarı],Diğer[GM Kodu],AylıkGiderlerÖzeti[[#This Row],[GM Kodu]],Diğer[Çek İsteğinin Başlangıç Tarihi],\">=\"&DATEVALUE(\"1.\"&AylıkGiderlerÖzeti[[#Headers],[Kasım]]&_xlfn.SINGLE(_YIL)),Diğer[Çek İsteğinin Başlangıç Tarihi],\"<=\"&N$4)","v":{"v":0,"d":"0.00 ₺"}},{"$f":"SUMIFS(GiderlerDökümü[Çek Tutarı],GiderlerDökümü[GM Kodu],AylıkGiderlerÖzeti[[#This Row],[GM Kodu]],GiderlerDökümü[Fatura Tarihi],\">=\"&O$3,GiderlerDökümü[Fatura Tarihi],\"<=\"&O$4)+SUMIFS(Diğer[Çek Tutarı],Diğer[GM Kodu],AylıkGiderlerÖzeti[[#This Row],[GM Kodu]],Diğer[Çek İsteğinin Başlangıç Tarihi],\">=\"&DATEVALUE(\"1.\"&AylıkGiderlerÖzeti[[#Headers],[Aralık]]&_xlfn.SINGLE(_YIL)),Diğer[Çek İsteğinin Başlangıç Tarihi],\"<=\"&O$4)","v":{"v":0,"d":"0.00 ₺"}},{"$f":"SUM(AylıkGiderlerÖzeti[[#This Row],[Ocak]:[Aralık]])","v":{"v":0,"d":"0.00 ₺"}}]
[null,3000,"Yazıcılar",{"$f":"SUMIFS(GiderlerDökümü[Çek Tutarı],GiderlerDökümü[GM Kodu],AylıkGiderlerÖzeti[[#This Row],[GM Kodu]],GiderlerDökümü[Fatura Tarihi],\">=\"&D$3,GiderlerDökümü[Fatura Tarihi],\"<=\"&D$4)+SUMIFS(Diğer[Çek Tutarı],Diğer[GM Kodu],AylıkGiderlerÖzeti[[#This Row],[GM Kodu]],Diğer[Çek İsteğinin Başlangıç Tarihi],\">=\"&DATEVALUE(\"1.\"&AylıkGiderlerÖzeti[[#Headers],[Ocak]]&_xlfn.SINGLE(_YIL)),Diğer[Çek İsteğinin Başlangıç Tarihi],\"<=\"&D$4)","v":{"v":0,"d":"0.00 ₺"}},{"$f":"SUMIFS(GiderlerDökümü[Çek Tutarı],GiderlerDökümü[GM Kodu],AylıkGiderlerÖzeti[[#This Row],[GM Kodu]],GiderlerDökümü[Fatura Tarihi],\">=\"&E$3,GiderlerDökümü[Fatura Tarihi],\"<=\"&E$4)+SUMIFS(Diğer[Çek Tutarı],Diğer[GM Kodu],AylıkGiderlerÖzeti[[#This Row],[GM Kodu]],Diğer[Çek İsteğinin Başlangıç Tarihi],\">=\"&DATEVALUE(\"1.\"&AylıkGiderlerÖzeti[[#Headers],[Şubat]]&_xlfn.SINGLE(_YIL)),Diğer[Çek İsteğinin Başlangıç Tarihi],\"<=\"&E$4)","v":{"v":0,"d":"0.00 ₺"}},{"$f":"SUMIFS(GiderlerDökümü[Çek Tutarı],GiderlerDökümü[GM Kodu],AylıkGiderlerÖzeti[[#This Row],[GM Kodu]],GiderlerDökümü[Fatura Tarihi],\">=\"&F$3,GiderlerDökümü[Fatura Tarihi],\"<=\"&F$4)+SUMIFS(Diğer[Çek Tutarı],Diğer[GM Kodu],AylıkGiderlerÖzeti[[#This Row],[GM Kodu]],Diğer[Çek İsteğinin Başlangıç Tarihi],\">=\"&DATEVALUE(\"1.\"&AylıkGiderlerÖzeti[[#Headers],[Mart]]&_xlfn.SINGLE(_YIL)),Diğer[Çek İsteğinin Başlangıç Tarihi],\"<=\"&F$4)","v":{"v":0,"d":"0.00 ₺"}},{"$f":"SUMIFS(GiderlerDökümü[Çek Tutarı],GiderlerDökümü[GM Kodu],AylıkGiderlerÖzeti[[#This Row],[GM Kodu]],GiderlerDökümü[Fatura Tarihi],\">=\"&G$3,GiderlerDökümü[Fatura Tarihi],\"<=\"&G$4)+SUMIFS(Diğer[Çek Tutarı],Diğer[GM Kodu],AylıkGiderlerÖzeti[[#This Row],[GM Kodu]],Diğer[Çek İsteğinin Başlangıç Tarihi],\">=\"&DATEVALUE(\"1.\"&AylıkGiderlerÖzeti[[#Headers],[Nisan]]&_xlfn.SINGLE(_YIL)),Diğer[Çek İsteğinin Başlangıç Tarihi],\"<=\"&G$4)","v":{"v":0,"d":"0.00 ₺"}},{"$f":"SUMIFS(GiderlerDökümü[Çek Tutarı],GiderlerDökümü[GM Kodu],AylıkGiderlerÖzeti[[#This Row],[GM Kodu]],GiderlerDökümü[Fatura Tarihi],\">=\"&H$3,GiderlerDökümü[Fatura Tarihi],\"<=\"&H$4)+SUMIFS(Diğer[Çek Tutarı],Diğer[GM Kodu],AylıkGiderlerÖzeti[[#This Row],[GM Kodu]],Diğer[Çek İsteğinin Başlangıç Tarihi],\">=\"&DATEVALUE(\"1.\"&AylıkGiderlerÖzeti[[#Headers],[Mayıs]]&_xlfn.SINGLE(_YIL)),Diğer[Çek İsteğinin Başlangıç Tarihi],\"<=\"&H$4)","v":{"v":0,"d":"0.00 ₺"}},{"$f":"SUMIFS(GiderlerDökümü[Çek Tutarı],GiderlerDökümü[GM Kodu],AylıkGiderlerÖzeti[[#This Row],[GM Kodu]],GiderlerDökümü[Fatura Tarihi],\">=\"&I$3,GiderlerDökümü[Fatura Tarihi],\"<=\"&I$4)+SUMIFS(Diğer[Çek Tutarı],Diğer[GM Kodu],AylıkGiderlerÖzeti[[#This Row],[GM Kodu]],Diğer[Çek İsteğinin Başlangıç Tarihi],\">=\"&DATEVALUE(\"1.\"&AylıkGiderlerÖzeti[[#Headers],[Haziran]]&_xlfn.SINGLE(_YIL)),Diğer[Çek İsteğinin Başlangıç Tarihi],\"<=\"&I$4)","v":{"v":0,"d":"0.00 ₺"}},{"$f":"SUMIFS(GiderlerDökümü[Çek Tutarı],GiderlerDökümü[GM Kodu],AylıkGiderlerÖzeti[[#This Row],[GM Kodu]],GiderlerDökümü[Fatura Tarihi],\">=\"&J$3,GiderlerDökümü[Fatura Tarihi],\"<=\"&J$4)+SUMIFS(Diğer[Çek Tutarı],Diğer[GM Kodu],AylıkGiderlerÖzeti[[#This Row],[GM Kodu]],Diğer[Çek İsteğinin Başlangıç Tarihi],\">=\"&DATEVALUE(\"1.\"&AylıkGiderlerÖzeti[[#Headers],[Temmuz]]&_xlfn.SINGLE(_YIL)),Diğer[Çek İsteğinin Başlangıç Tarihi],\"<=\"&J$4)","v":{"v":0,"d":"0.00 ₺"}},{"$f":"SUMIFS(GiderlerDökümü[Çek Tutarı],GiderlerDökümü[GM Kodu],AylıkGiderlerÖzeti[[#This Row],[GM Kodu]],GiderlerDökümü[Fatura Tarihi],\">=\"&K$3,GiderlerDökümü[Fatura Tarihi],\"<=\"&K$4)+SUMIFS(Diğer[Çek Tutarı],Diğer[GM Kodu],AylıkGiderlerÖzeti[[#This Row],[GM Kodu]],Diğer[Çek İsteğinin Başlangıç Tarihi],\">=\"&DATEVALUE(\"1.\"&AylıkGiderlerÖzeti[[#Headers],[Ağustos]]&_xlfn.SINGLE(_YIL)),Diğer[Çek İsteğinin Başlangıç Tarihi],\"<=\"&K$4)","v":{"v":0,"d":"0.00 ₺"}},{"$f":"SUMIFS(GiderlerDökümü[Çek Tutarı],GiderlerDökümü[GM Kodu],AylıkGiderlerÖzeti[[#This Row],[GM Kodu]],GiderlerDökümü[Fatura Tarihi],\">=\"&L$3,GiderlerDökümü[Fatura Tarihi],\"<=\"&L$4)+SUMIFS(Diğer[Çek Tutarı],Diğer[GM Kodu],AylıkGiderlerÖzeti[[#This Row],[GM Kodu]],Diğer[Çek İsteğinin Başlangıç Tarihi],\">=\"&DATEVALUE(\"1.\"&AylıkGiderlerÖzeti[[#Headers],[Eylül]]&_xlfn.SINGLE(_YIL)),Diğer[Çek İsteğinin Başlangıç Tarihi],\"<=\"&L$4)","v":{"v":0,"d":"0.00 ₺"}},{"$f":"SUMIFS(GiderlerDökümü[Çek Tutarı],GiderlerDökümü[GM Kodu],AylıkGiderlerÖzeti[[#This Row],[GM Kodu]],GiderlerDökümü[Fatura Tarihi],\">=\"&M$3,GiderlerDökümü[Fatura Tarihi],\"<=\"&M$4)+SUMIFS(Diğer[Çek Tutarı],Diğer[GM Kodu],AylıkGiderlerÖzeti[[#This Row],[GM Kodu]],Diğer[Çek İsteğinin Başlangıç Tarihi],\">=\"&DATEVALUE(\"1.\"&AylıkGiderlerÖzeti[[#Headers],[Ekim]]&_xlfn.SINGLE(_YIL)),Diğer[Çek İsteğinin Başlangıç Tarihi],\"<=\"&M$4)","v":{"v":0,"d":"0.00 ₺"}},{"$f":"SUMIFS(GiderlerDökümü[Çek Tutarı],GiderlerDökümü[GM Kodu],AylıkGiderlerÖzeti[[#This Row],[GM Kodu]],GiderlerDökümü[Fatura Tarihi],\">=\"&N$3,GiderlerDökümü[Fatura Tarihi],\"<=\"&N$4)+SUMIFS(Diğer[Çek Tutarı],Diğer[GM Kodu],AylıkGiderlerÖzeti[[#This Row],[GM Kodu]],Diğer[Çek İsteğinin Başlangıç Tarihi],\">=\"&DATEVALUE(\"1.\"&AylıkGiderlerÖzeti[[#Headers],[Kasım]]&_xlfn.SINGLE(_YIL)),Diğer[Çek İsteğinin Başlangıç Tarihi],\"<=\"&N$4)","v":{"v":0,"d":"0.00 ₺"}},{"$f":"SUMIFS(GiderlerDökümü[Çek Tutarı],GiderlerDökümü[GM Kodu],AylıkGiderlerÖzeti[[#This Row],[GM Kodu]],GiderlerDökümü[Fatura Tarihi],\">=\"&O$3,GiderlerDökümü[Fatura Tarihi],\"<=\"&O$4)+SUMIFS(Diğer[Çek Tutarı],Diğer[GM Kodu],AylıkGiderlerÖzeti[[#This Row],[GM Kodu]],Diğer[Çek İsteğinin Başlangıç Tarihi],\">=\"&DATEVALUE(\"1.\"&AylıkGiderlerÖzeti[[#Headers],[Aralık]]&_xlfn.SINGLE(_YIL)),Diğer[Çek İsteğinin Başlangıç Tarihi],\"<=\"&O$4)","v":{"v":0,"d":"0.00 ₺"}},{"$f":"SUM(AylıkGiderlerÖzeti[[#This Row],[Ocak]:[Aralık]])","v":{"v":0,"d":"0.00 ₺"}}]
[null,4000,"Sunucu Maliyetleri",{"$f":"SUMIFS(GiderlerDökümü[Çek Tutarı],GiderlerDökümü[GM Kodu],AylıkGiderlerÖzeti[[#This Row],[GM Kodu]],GiderlerDökümü[Fatura Tarihi],\">=\"&D$3,GiderlerDökümü[Fatura Tarihi],\"<=\"&D$4)+SUMIFS(Diğer[Çek Tutarı],Diğer[GM Kodu],AylıkGiderlerÖzeti[[#This Row],[GM Kodu]],Diğer[Çek İsteğinin Başlangıç Tarihi],\">=\"&DATEVALUE(\"1.\"&AylıkGiderlerÖzeti[[#Headers],[Ocak]]&_xlfn.SINGLE(_YIL)),Diğer[Çek İsteğinin Başlangıç Tarihi],\"<=\"&D$4)","v":{"v":0,"d":"0.00 ₺"}},{"$f":"SUMIFS(GiderlerDökümü[Çek Tutarı],GiderlerDökümü[GM Kodu],AylıkGiderlerÖzeti[[#This Row],[GM Kodu]],GiderlerDökümü[Fatura Tarihi],\">=\"&E$3,GiderlerDökümü[Fatura Tarihi],\"<=\"&E$4)+SUMIFS(Diğer[Çek Tutarı],Diğer[GM Kodu],AylıkGiderlerÖzeti[[#This Row],[GM Kodu]],Diğer[Çek İsteğinin Başlangıç Tarihi],\">=\"&DATEVALUE(\"1.\"&AylıkGiderlerÖzeti[[#Headers],[Şubat]]&_xlfn.SINGLE(_YIL)),Diğer[Çek İsteğinin Başlangıç Tarihi],\"<=\"&E$4)","v":{"v":0,"d":"0.00 ₺"}},{"$f":"SUMIFS(GiderlerDökümü[Çek Tutarı],GiderlerDökümü[GM Kodu],AylıkGiderlerÖzeti[[#This Row],[GM Kodu]],GiderlerDökümü[Fatura Tarihi],\">=\"&F$3,GiderlerDökümü[Fatura Tarihi],\"<=\"&F$4)+SUMIFS(Diğer[Çek Tutarı],Diğer[GM Kodu],AylıkGiderlerÖzeti[[#This Row],[GM Kodu]],Diğer[Çek İsteğinin Başlangıç Tarihi],\">=\"&DATEVALUE(\"1.\"&AylıkGiderlerÖzeti[[#Headers],[Mart]]&_xlfn.SINGLE(_YIL)),Diğer[Çek İsteğinin Başlangıç Tarihi],\"<=\"&F$4)","v":{"v":0,"d":"0.00 ₺"}},{"$f":"SUMIFS(GiderlerDökümü[Çek Tutarı],GiderlerDökümü[GM Kodu],AylıkGiderlerÖzeti[[#This Row],[GM Kodu]],GiderlerDökümü[Fatura Tarihi],\">=\"&G$3,GiderlerDökümü[Fatura Tarihi],\"<=\"&G$4)+SUMIFS(Diğer[Çek Tutarı],Diğer[GM Kodu],AylıkGiderlerÖzeti[[#This Row],[GM Kodu]],Diğer[Çek İsteğinin Başlangıç Tarihi],\">=\"&DATEVALUE(\"1.\"&AylıkGiderlerÖzeti[[#Headers],[Nisan]]&_xlfn.SINGLE(_YIL)),Diğer[Çek İsteğinin Başlangıç Tarihi],\"<=\"&G$4)","v":{"v":0,"d":"0.00 ₺"}},{"$f":"SUMIFS(GiderlerDökümü[Çek Tutarı],GiderlerDökümü[GM Kodu],AylıkGiderlerÖzeti[[#This Row],[GM Kodu]],GiderlerDökümü[Fatura Tarihi],\">=\"&H$3,GiderlerDökümü[Fatura Tarihi],\"<=\"&H$4)+SUMIFS(Diğer[Çek Tutarı],Diğer[GM Kodu],AylıkGiderlerÖzeti[[#This Row],[GM Kodu]],Diğer[Çek İsteğinin Başlangıç Tarihi],\">=\"&DATEVALUE(\"1.\"&AylıkGiderlerÖzeti[[#Headers],[Mayıs]]&_xlfn.SINGLE(_YIL)),Diğer[Çek İsteğinin Başlangıç Tarihi],\"<=\"&H$4)","v":{"v":0,"d":"0.00 ₺"}},{"$f":"SUMIFS(GiderlerDökümü[Çek Tutarı],GiderlerDökümü[GM Kodu],AylıkGiderlerÖzeti[[#This Row],[GM Kodu]],GiderlerDökümü[Fatura Tarihi],\">=\"&I$3,GiderlerDökümü[Fatura Tarihi],\"<=\"&I$4)+SUMIFS(Diğer[Çek Tutarı],Diğer[GM Kodu],AylıkGiderlerÖzeti[[#This Row],[GM Kodu]],Diğer[Çek İsteğinin Başlangıç Tarihi],\">=\"&DATEVALUE(\"1.\"&AylıkGiderlerÖzeti[[#Headers],[Haziran]]&_xlfn.SINGLE(_YIL)),Diğer[Çek İsteğinin Başlangıç Tarihi],\"<=\"&I$4)","v":{"v":0,"d":"0.00 ₺"}},{"$f":"SUMIFS(GiderlerDökümü[Çek Tutarı],GiderlerDökümü[GM Kodu],AylıkGiderlerÖzeti[[#This Row],[GM Kodu]],GiderlerDökümü[Fatura Tarihi],\">=\"&J$3,GiderlerDökümü[Fatura Tarihi],\"<=\"&J$4)+SUMIFS(Diğer[Çek Tutarı],Diğer[GM Kodu],AylıkGiderlerÖzeti[[#This Row],[GM Kodu]],Diğer[Çek İsteğinin Başlangıç Tarihi],\">=\"&DATEVALUE(\"1.\"&AylıkGiderlerÖzeti[[#Headers],[Temmuz]]&_xlfn.SINGLE(_YIL)),Diğer[Çek İsteğinin Başlangıç Tarihi],\"<=\"&J$4)","v":{"v":0,"d":"0.00 ₺"}},{"$f":"SUMIFS(GiderlerDökümü[Çek Tutarı],GiderlerDökümü[GM Kodu],AylıkGiderlerÖzeti[[#This Row],[GM Kodu]],GiderlerDökümü[Fatura Tarihi],\">=\"&K$3,GiderlerDökümü[Fatura Tarihi],\"<=\"&K$4)+SUMIFS(Diğer[Çek Tutarı],Diğer[GM Kodu],AylıkGiderlerÖzeti[[#This Row],[GM Kodu]],Diğer[Çek İsteğinin Başlangıç Tarihi],\">=\"&DATEVALUE(\"1.\"&AylıkGiderlerÖzeti[[#Headers],[Ağustos]]&_xlfn.SINGLE(_YIL)),Diğer[Çek İsteğinin Başlangıç Tarihi],\"<=\"&K$4)","v":{"v":0,"d":"0.00 ₺"}},{"$f":"SUMIFS(GiderlerDökümü[Çek Tutarı],GiderlerDökümü[GM Kodu],AylıkGiderlerÖzeti[[#This Row],[GM Kodu]],GiderlerDökümü[Fatura Tarihi],\">=\"&L$3,GiderlerDökümü[Fatura Tarihi],\"<=\"&L$4)+SUMIFS(Diğer[Çek Tutarı],Diğer[GM Kodu],AylıkGiderlerÖzeti[[#This Row],[GM Kodu]],Diğer[Çek İsteğinin Başlangıç Tarihi],\">=\"&DATEVALUE(\"1.\"&AylıkGiderlerÖzeti[[#Headers],[Eylül]]&_xlfn.SINGLE(_YIL)),Diğer[Çek İsteğinin Başlangıç Tarihi],\"<=\"&L$4)","v":{"v":0,"d":"0.00 ₺"}},{"$f":"SUMIFS(GiderlerDökümü[Çek Tutarı],GiderlerDökümü[GM Kodu],AylıkGiderlerÖzeti[[#This Row],[GM Kodu]],GiderlerDökümü[Fatura Tarihi],\">=\"&M$3,GiderlerDökümü[Fatura Tarihi],\"<=\"&M$4)+SUMIFS(Diğer[Çek Tutarı],Diğer[GM Kodu],AylıkGiderlerÖzeti[[#This Row],[GM Kodu]],Diğer[Çek İsteğinin Başlangıç Tarihi],\">=\"&DATEVALUE(\"1.\"&AylıkGiderlerÖzeti[[#Headers],[Ekim]]&_xlfn.SINGLE(_YIL)),Diğer[Çek İsteğinin Başlangıç Tarihi],\"<=\"&M$4)","v":{"v":0,"d":"0.00 ₺"}},{"$f":"SUMIFS(GiderlerDökümü[Çek Tutarı],GiderlerDökümü[GM Kodu],AylıkGiderlerÖzeti[[#This Row],[GM Kodu]],GiderlerDökümü[Fatura Tarihi],\">=\"&N$3,GiderlerDökümü[Fatura Tarihi],\"<=\"&N$4)+SUMIFS(Diğer[Çek Tutarı],Diğer[GM Kodu],AylıkGiderlerÖzeti[[#This Row],[GM Kodu]],Diğer[Çek İsteğinin Başlangıç Tarihi],\">=\"&DATEVALUE(\"1.\"&AylıkGiderlerÖzeti[[#Headers],[Kasım]]&_xlfn.SINGLE(_YIL)),Diğer[Çek İsteğinin Başlangıç Tarihi],\"<=\"&N$4)","v":{"v":0,"d":"0.00 ₺"}},{"$f":"SUMIFS(GiderlerDökümü[Çek Tutarı],GiderlerDökümü[GM Kodu],AylıkGiderlerÖzeti[[#This Row],[GM Kodu]],GiderlerDökümü[Fatura Tarihi],\">=\"&O$3,GiderlerDökümü[Fatura Tarihi],\"<=\"&O$4)+SUMIFS(Diğer[Çek Tutarı],Diğer[GM Kodu],AylıkGiderlerÖzeti[[#This Row],[GM Kodu]],Diğer[Çek İsteğinin Başlangıç Tarihi],\">=\"&DATEVALUE(\"1.\"&AylıkGiderlerÖzeti[[#Headers],[Aralık]]&_xlfn.SINGLE(_YIL)),Diğer[Çek İsteğinin Başlangıç Tarihi],\"<=\"&O$4)","v":{"v":0,"d":"0.00 ₺"}},{"$f":"SUM(AylıkGiderlerÖzeti[[#This Row],[Ocak]:[Aralık]])","v":{"v":0,"d":"0.00 ₺"}}]
[null,5000,"Diğer Malzemeler",{"$f":"SUMIFS(GiderlerDökümü[Çek Tutarı],GiderlerDökümü[GM Kodu],AylıkGiderlerÖzeti[[#This Row],[GM Kodu]],GiderlerDökümü[Fatura Tarihi],\">=\"&D$3,GiderlerDökümü[Fatura Tarihi],\"<=\"&D$4)+SUMIFS(Diğer[Çek Tutarı],Diğer[GM Kodu],AylıkGiderlerÖzeti[[#This Row],[GM Kodu]],Diğer[Çek İsteğinin Başlangıç Tarihi],\">=\"&DATEVALUE(\"1.\"&AylıkGiderlerÖzeti[[#Headers],[Ocak]]&_xlfn.SINGLE(_YIL)),Diğer[Çek İsteğinin Başlangıç Tarihi],\"<=\"&D$4)","v":{"v":0,"d":"0.00 ₺"}},{"$f":"SUMIFS(GiderlerDökümü[Çek Tutarı],GiderlerDökümü[GM Kodu],AylıkGiderlerÖzeti[[#This Row],[GM Kodu]],GiderlerDökümü[Fatura Tarihi],\">=\"&E$3,GiderlerDökümü[Fatura Tarihi],\"<=\"&E$4)+SUMIFS(Diğer[Çek Tutarı],Diğer[GM Kodu],AylıkGiderlerÖzeti[[#This Row],[GM Kodu]],Diğer[Çek İsteğinin Başlangıç Tarihi],\">=\"&DATEVALUE(\"1.\"&AylıkGiderlerÖzeti[[#Headers],[Şubat]]&_xlfn.SINGLE(_YIL)),Diğer[Çek İsteğinin Başlangıç Tarihi],\"<=\"&E$4)","v":{"v":0,"d":"0.00 ₺"}},{"$f":"SUMIFS(GiderlerDökümü[Çek Tutarı],GiderlerDökümü[GM Kodu],AylıkGiderlerÖzeti[[#This Row],[GM Kodu]],GiderlerDökümü[Fatura Tarihi],\">=\"&F$3,GiderlerDökümü[Fatura Tarihi],\"<=\"&F$4)+SUMIFS(Diğer[Çek Tutarı],Diğer[GM Kodu],AylıkGiderlerÖzeti[[#This Row],[GM Kodu]],Diğer[Çek İsteğinin Başlangıç Tarihi],\">=\"&DATEVALUE(\"1.\"&AylıkGiderlerÖzeti[[#Headers],[Mart]]&_xlfn.SINGLE(_YIL)),Diğer[Çek İsteğinin Başlangıç Tarihi],\"<=\"&F$4)","v":{"v":0,"d":"0.00 ₺"}},{"$f":"SUMIFS(GiderlerDökümü[Çek Tutarı],GiderlerDökümü[GM Kodu],AylıkGiderlerÖzeti[[#This Row],[GM Kodu]],GiderlerDökümü[Fatura Tarihi],\">=\"&G$3,GiderlerDökümü[Fatura Tarihi],\"<=\"&G$4)+SUMIFS(Diğer[Çek Tutarı],Diğer[GM Kodu],AylıkGiderlerÖzeti[[#This Row],[GM Kodu]],Diğer[Çek İsteğinin Başlangıç Tarihi],\">=\"&DATEVALUE(\"1.\"&AylıkGiderlerÖzeti[[#Headers],[Nisan]]&_xlfn.SINGLE(_YIL)),Diğer[Çek İsteğinin Başlangıç Tarihi],\"<=\"&G$4)","v":{"v":0,"d":"0.00 ₺"}},{"$f":"SUMIFS(GiderlerDökümü[Çek Tutarı],GiderlerDökümü[GM Kodu],AylıkGiderlerÖzeti[[#This Row],[GM Kodu]],GiderlerDökümü[Fatura Tarihi],\">=\"&H$3,GiderlerDökümü[Fatura Tarihi],\"<=\"&H$4)+SUMIFS(Diğer[Çek Tutarı],Diğer[GM Kodu],AylıkGiderlerÖzeti[[#This Row],[GM Kodu]],Diğer[Çek İsteğinin Başlangıç Tarihi],\">=\"&DATEVALUE(\"1.\"&AylıkGiderlerÖzeti[[#Headers],[Mayıs]]&_xlfn.SINGLE(_YIL)),Diğer[Çek İsteğinin Başlangıç Tarihi],\"<=\"&H$4)","v":{"v":0,"d":"0.00 ₺"}},{"$f":"SUMIFS(GiderlerDökümü[Çek Tutarı],GiderlerDökümü[GM Kodu],AylıkGiderlerÖzeti[[#This Row],[GM Kodu]],GiderlerDökümü[Fatura Tarihi],\">=\"&I$3,GiderlerDökümü[Fatura Tarihi],\"<=\"&I$4)+SUMIFS(Diğer[Çek Tutarı],Diğer[GM Kodu],AylıkGiderlerÖzeti[[#This Row],[GM Kodu]],Diğer[Çek İsteğinin Başlangıç Tarihi],\">=\"&DATEVALUE(\"1.\"&AylıkGiderlerÖzeti[[#Headers],[Haziran]]&_xlfn.SINGLE(_YIL)),Diğer[Çek İsteğinin Başlangıç Tarihi],\"<=\"&I$4)","v":{"v":0,"d":"0.00 ₺"}},{"$f":"SUMIFS(GiderlerDökümü[Çek Tutarı],GiderlerDökümü[GM Kodu],AylıkGiderlerÖzeti[[#This Row],[GM Kodu]],GiderlerDökümü[Fatura Tarihi],\">=\"&J$3,GiderlerDökümü[Fatura Tarihi],\"<=\"&J$4)+SUMIFS(Diğer[Çek Tutarı],Diğer[GM Kodu],AylıkGiderlerÖzeti[[#This Row],[GM Kodu]],Diğer[Çek İsteğinin Başlangıç Tarihi],\">=\"&DATEVALUE(\"1.\"&AylıkGiderlerÖzeti[[#Headers],[Temmuz]]&_xlfn.SINGLE(_YIL)),Diğer[Çek İsteğinin Başlangıç Tarihi],\"<=\"&J$4)","v":{"v":0,"d":"0.00 ₺"}},{"$f":"SUMIFS(GiderlerDökümü[Çek Tutarı],GiderlerDökümü[GM Kodu],AylıkGiderlerÖzeti[[#This Row],[GM Kodu]],GiderlerDökümü[Fatura Tarihi],\">=\"&K$3,GiderlerDökümü[Fatura Tarihi],\"<=\"&K$4)+SUMIFS(Diğer[Çek Tutarı],Diğer[GM Kodu],AylıkGiderlerÖzeti[[#This Row],[GM Kodu]],Diğer[Çek İsteğinin Başlangıç Tarihi],\">=\"&DATEVALUE(\"1.\"&AylıkGiderlerÖzeti[[#Headers],[Ağustos]]&_xlfn.SINGLE(_YIL)),Diğer[Çek İsteğinin Başlangıç Tarihi],\"<=\"&K$4)","v":{"v":0,"d":"0.00 ₺"}},{"$f":"SUMIFS(GiderlerDökümü[Çek Tutarı],GiderlerDökümü[GM Kodu],AylıkGiderlerÖzeti[[#This Row],[GM Kodu]],GiderlerDökümü[Fatura Tarihi],\">=\"&L$3,GiderlerDökümü[Fatura Tarihi],\"<=\"&L$4)+SUMIFS(Diğer[Çek Tutarı],Diğer[GM Kodu],AylıkGiderlerÖzeti[[#This Row],[GM Kodu]],Diğer[Çek İsteğinin Başlangıç Tarihi],\">=\"&DATEVALUE(\"1.\"&AylıkGiderlerÖzeti[[#Headers],[Eylül]]&_xlfn.SINGLE(_YIL)),Diğer[Çek İsteğinin Başlangıç Tarihi],\"<=\"&L$4)","v":{"v":0,"d":"0.00 ₺"}},{"$f":"SUMIFS(GiderlerDökümü[Çek Tutarı],GiderlerDökümü[GM Kodu],AylıkGiderlerÖzeti[[#This Row],[GM Kodu]],GiderlerDökümü[Fatura Tarihi],\">=\"&M$3,GiderlerDökümü[Fatura Tarihi],\"<=\"&M$4)+SUMIFS(Diğer[Çek Tutarı],Diğer[GM Kodu],AylıkGiderlerÖzeti[[#This Row],[GM Kodu]],Diğer[Çek İsteğinin Başlangıç Tarihi],\">=\"&DATEVALUE(\"1.\"&AylıkGiderlerÖzeti[[#Headers],[Ekim]]&_xlfn.SINGLE(_YIL)),Diğer[Çek İsteğinin Başlangıç Tarihi],\"<=\"&M$4)","v":{"v":0,"d":"0.00 ₺"}},{"$f":"SUMIFS(GiderlerDökümü[Çek Tutarı],GiderlerDökümü[GM Kodu],AylıkGiderlerÖzeti[[#This Row],[GM Kodu]],GiderlerDökümü[Fatura Tarihi],\">=\"&N$3,GiderlerDökümü[Fatura Tarihi],\"<=\"&N$4)+SUMIFS(Diğer[Çek Tutarı],Diğer[GM Kodu],AylıkGiderlerÖzeti[[#This Row],[GM Kodu]],Diğer[Çek İsteğinin Başlangıç Tarihi],\">=\"&DATEVALUE(\"1.\"&AylıkGiderlerÖzeti[[#Headers],[Kasım]]&_xlfn.SINGLE(_YIL)),Diğer[Çek İsteğinin Başlangıç Tarihi],\"<=\"&N$4)","v":{"v":0,"d":"0.00 ₺"}},{"$f":"SUMIFS(GiderlerDökümü[Çek Tutarı],GiderlerDökümü[GM Kodu],AylıkGiderlerÖzeti[[#This Row],[GM Kodu]],GiderlerDökümü[Fatura Tarihi],\">=\"&O$3,GiderlerDökümü[Fatura Tarihi],\"<=\"&O$4)+SUMIFS(Diğer[Çek Tutarı],Diğer[GM Kodu],AylıkGiderlerÖzeti[[#This Row],[GM Kodu]],Diğer[Çek İsteğinin Başlangıç Tarihi],\">=\"&DATEVALUE(\"1.\"&AylıkGiderlerÖzeti[[#Headers],[Aralık]]&_xlfn.SINGLE(_YIL)),Diğer[Çek İsteğinin Başlangıç Tarihi],\"<=\"&O$4)","v":{"v":0,"d":"0.00 ₺"}},{"$f":"SUM(AylıkGiderlerÖzeti[[#This Row],[Ocak]:[Aralık]])","v":{"v":0,"d":"0.00 ₺"}}]
[null,6000,"Müşteri Giderleri",{"$f":"SUMIFS(GiderlerDökümü[Çek Tutarı],GiderlerDökümü[GM Kodu],AylıkGiderlerÖzeti[[#This Row],[GM Kodu]],GiderlerDökümü[Fatura Tarihi],\">=\"&D$3,GiderlerDökümü[Fatura Tarihi],\"<=\"&D$4)+SUMIFS(Diğer[Çek Tutarı],Diğer[GM Kodu],AylıkGiderlerÖzeti[[#This Row],[GM Kodu]],Diğer[Çek İsteğinin Başlangıç Tarihi],\">=\"&DATEVALUE(\"1.\"&AylıkGiderlerÖzeti[[#Headers],[Ocak]]&_xlfn.SINGLE(_YIL)),Diğer[Çek İsteğinin Başlangıç Tarihi],\"<=\"&D$4)","v":{"v":0,"d":"0.00 ₺"}},{"$f":"SUMIFS(GiderlerDökümü[Çek Tutarı],GiderlerDökümü[GM Kodu],AylıkGiderlerÖzeti[[#This Row],[GM Kodu]],GiderlerDökümü[Fatura Tarihi],\">=\"&E$3,GiderlerDökümü[Fatura Tarihi],\"<=\"&E$4)+SUMIFS(Diğer[Çek Tutarı],Diğer[GM Kodu],AylıkGiderlerÖzeti[[#This Row],[GM Kodu]],Diğer[Çek İsteğinin Başlangıç Tarihi],\">=\"&DATEVALUE(\"1.\"&AylıkGiderlerÖzeti[[#Headers],[Şubat]]&_xlfn.SINGLE(_YIL)),Diğer[Çek İsteğinin Başlangıç Tarihi],\"<=\"&E$4)","v":{"v":0,"d":"0.00 ₺"}},{"$f":"SUMIFS(GiderlerDökümü[Çek Tutarı],GiderlerDökümü[GM Kodu],AylıkGiderlerÖzeti[[#This Row],[GM Kodu]],GiderlerDökümü[Fatura Tarihi],\">=\"&F$3,GiderlerDökümü[Fatura Tarihi],\"<=\"&F$4)+SUMIFS(Diğer[Çek Tutarı],Diğer[GM Kodu],AylıkGiderlerÖzeti[[#This Row],[GM Kodu]],Diğer[Çek İsteğinin Başlangıç Tarihi],\">=\"&DATEVALUE(\"1.\"&AylıkGiderlerÖzeti[[#Headers],[Mart]]&_xlfn.SINGLE(_YIL)),Diğer[Çek İsteğinin Başlangıç Tarihi],\"<=\"&F$4)","v":{"v":0,"d":"0.00 ₺"}},{"$f":"SUMIFS(GiderlerDökümü[Çek Tutarı],GiderlerDökümü[GM Kodu],AylıkGiderlerÖzeti[[#This Row],[GM Kodu]],GiderlerDökümü[Fatura Tarihi],\">=\"&G$3,GiderlerDökümü[Fatura Tarihi],\"<=\"&G$4)+SUMIFS(Diğer[Çek Tutarı],Diğer[GM Kodu],AylıkGiderlerÖzeti[[#This Row],[GM Kodu]],Diğer[Çek İsteğinin Başlangıç Tarihi],\">=\"&DATEVALUE(\"1.\"&AylıkGiderlerÖzeti[[#Headers],[Nisan]]&_xlfn.SINGLE(_YIL)),Diğer[Çek İsteğinin Başlangıç Tarihi],\"<=\"&G$4)","v":{"v":0,"d":"0.00 ₺"}},{"$f":"SUMIFS(GiderlerDökümü[Çek Tutarı],GiderlerDökümü[GM Kodu],AylıkGiderlerÖzeti[[#This Row],[GM Kodu]],GiderlerDökümü[Fatura Tarihi],\">=\"&H$3,GiderlerDökümü[Fatura Tarihi],\"<=\"&H$4)+SUMIFS(Diğer[Çek Tutarı],Diğer[GM Kodu],AylıkGiderlerÖzeti[[#This Row],[GM Kodu]],Diğer[Çek İsteğinin Başlangıç Tarihi],\">=\"&DATEVALUE(\"1.\"&AylıkGiderlerÖzeti[[#Headers],[Mayıs]]&_xlfn.SINGLE(_YIL)),Diğer[Çek İsteğinin Başlangıç Tarihi],\"<=\"&H$4)","v":{"v":0,"d":"0.00 ₺"}},{"$f":"SUMIFS(GiderlerDökümü[Çek Tutarı],GiderlerDökümü[GM Kodu],AylıkGiderlerÖzeti[[#This Row],[GM Kodu]],GiderlerDökümü[Fatura Tarihi],\">=\"&I$3,GiderlerDökümü[Fatura Tarihi],\"<=\"&I$4)+SUMIFS(Diğer[Çek Tutarı],Diğer[GM Kodu],AylıkGiderlerÖzeti[[#This Row],[GM Kodu]],Diğer[Çek İsteğinin Başlangıç Tarihi],\">=\"&DATEVALUE(\"1.\"&AylıkGiderlerÖzeti[[#Headers],[Haziran]]&_xlfn.SINGLE(_YIL)),Diğer[Çek İsteğinin Başlangıç Tarihi],\"<=\"&I$4)","v":{"v":0,"d":"0.00 ₺"}},{"$f":"SUMIFS(GiderlerDökümü[Çek Tutarı],GiderlerDökümü[GM Kodu],AylıkGiderlerÖzeti[[#This Row],[GM Kodu]],GiderlerDökümü[Fatura Tarihi],\">=\"&J$3,GiderlerDökümü[Fatura Tarihi],\"<=\"&J$4)+SUMIFS(Diğer[Çek Tutarı],Diğer[GM Kodu],AylıkGiderlerÖzeti[[#This Row],[GM Kodu]],Diğer[Çek İsteğinin Başlangıç Tarihi],\">=\"&DATEVALUE(\"1.\"&AylıkGiderlerÖzeti[[#Headers],[Temmuz]]&_xlfn.SINGLE(_YIL)),Diğer[Çek İsteğinin Başlangıç Tarihi],\"<=\"&J$4)","v":{"v":0,"d":"0.00 ₺"}},{"$f":"SUMIFS(GiderlerDökümü[Çek Tutarı],GiderlerDökümü[GM Kodu],AylıkGiderlerÖzeti[[#This Row],[GM Kodu]],GiderlerDökümü[Fatura Tarihi],\">=\"&K$3,GiderlerDökümü[Fatura Tarihi],\"<=\"&K$4)+SUMIFS(Diğer[Çek Tutarı],Diğer[GM Kodu],AylıkGiderlerÖzeti[[#This Row],[GM Kodu]],Diğer[Çek İsteğinin Başlangıç Tarihi],\">=\"&DATEVALUE(\"1.\"&AylıkGiderlerÖzeti[[#Headers],[Ağustos]]&_xlfn.SINGLE(_YIL)),Diğer[Çek İsteğinin Başlangıç Tarihi],\"<=\"&K$4)","v":{"v":0,"d":"0.00 ₺"}},{"$f":"SUMIFS(GiderlerDökümü[Çek Tutarı],GiderlerDökümü[GM Kodu],AylıkGiderlerÖzeti[[#This Row],[GM Kodu]],GiderlerDökümü[Fatura Tarihi],\">=\"&L$3,GiderlerDökümü[Fatura Tarihi],\"<=\"&L$4)+SUMIFS(Diğer[Çek Tutarı],Diğer[GM Kodu],AylıkGiderlerÖzeti[[#This Row],[GM Kodu]],Diğer[Çek İsteğinin Başlangıç Tarihi],\">=\"&DATEVALUE(\"1.\"&AylıkGiderlerÖzeti[[#Headers],[Eylül]]&_xlfn.SINGLE(_YIL)),Diğer[Çek İsteğinin Başlangıç Tarihi],\"<=\"&L$4)","v":{"v":0,"d":"0.00 ₺"}},{"$f":"SUMIFS(GiderlerDökümü[Çek Tutarı],GiderlerDökümü[GM Kodu],AylıkGiderlerÖzeti[[#This Row],[GM Kodu]],GiderlerDökümü[Fatura Tarihi],\">=\"&M$3,GiderlerDökümü[Fatura Tarihi],\"<=\"&M$4)+SUMIFS(Diğer[Çek Tutarı],Diğer[GM Kodu],AylıkGiderlerÖzeti[[#This Row],[GM Kodu]],Diğer[Çek İsteğinin Başlangıç Tarihi],\">=\"&DATEVALUE(\"1.\"&AylıkGiderlerÖzeti[[#Headers],[Ekim]]&_xlfn.SINGLE(_YIL)),Diğer[Çek İsteğinin Başlangıç Tarihi],\"<=\"&M$4)","v":{"v":0,"d":"0.00 ₺"}},{"$f":"SUMIFS(GiderlerDökümü[Çek Tutarı],GiderlerDökümü[GM Kodu],AylıkGiderlerÖzeti[[#This Row],[GM Kodu]],GiderlerDökümü[Fatura Tarihi],\">=\"&N$3,GiderlerDökümü[Fatura Tarihi],\"<=\"&N$4)+SUMIFS(Diğer[Çek Tutarı],Diğer[GM Kodu],AylıkGiderlerÖzeti[[#This Row],[GM Kodu]],Diğer[Çek İsteğinin Başlangıç Tarihi],\">=\"&DATEVALUE(\"1.\"&AylıkGiderlerÖzeti[[#Headers],[Kasım]]&_xlfn.SINGLE(_YIL)),Diğer[Çek İsteğinin Başlangıç Tarihi],\"<=\"&N$4)","v":{"v":0,"d":"0.00 ₺"}},{"$f":"SUMIFS(GiderlerDökümü[Çek Tutarı],GiderlerDökümü[GM Kodu],AylıkGiderlerÖzeti[[#This Row],[GM Kodu]],GiderlerDökümü[Fatura Tarihi],\">=\"&O$3,GiderlerDökümü[Fatura Tarihi],\"<=\"&O$4)+SUMIFS(Diğer[Çek Tutarı],Diğer[GM Kodu],AylıkGiderlerÖzeti[[#This Row],[GM Kodu]],Diğer[Çek İsteğinin Başlangıç Tarihi],\">=\"&DATEVALUE(\"1.\"&AylıkGiderlerÖzeti[[#Headers],[Aralık]]&_xlfn.SINGLE(_YIL)),Diğer[Çek İsteğinin Başlangıç Tarihi],\"<=\"&O$4)","v":{"v":0,"d":"0.00 ₺"}},{"$f":"SUM(AylıkGiderlerÖzeti[[#This Row],[Ocak]:[Aralık]])","v":{"v":0,"d":"0.00 ₺"}}]
[null,7000,"Bilgisayarlar",{"$f":"SUMIFS(GiderlerDökümü[Çek Tutarı],GiderlerDökümü[GM Kodu],AylıkGiderlerÖzeti[[#This Row],[GM Kodu]],GiderlerDökümü[Fatura Tarihi],\">=\"&D$3,GiderlerDökümü[Fatura Tarihi],\"<=\"&D$4)+SUMIFS(Diğer[Çek Tutarı],Diğer[GM Kodu],AylıkGiderlerÖzeti[[#This Row],[GM Kodu]],Diğer[Çek İsteğinin Başlangıç Tarihi],\">=\"&DATEVALUE(\"1.\"&AylıkGiderlerÖzeti[[#Headers],[Ocak]]&_xlfn.SINGLE(_YIL)),Diğer[Çek İsteğinin Başlangıç Tarihi],\"<=\"&D$4)","v":{"v":0,"d":"0.00 ₺"}},{"$f":"SUMIFS(GiderlerDökümü[Çek Tutarı],GiderlerDökümü[GM Kodu],AylıkGiderlerÖzeti[[#This Row],[GM Kodu]],GiderlerDökümü[Fatura Tarihi],\">=\"&E$3,GiderlerDökümü[Fatura Tarihi],\"<=\"&E$4)+SUMIFS(Diğer[Çek Tutarı],Diğer[GM Kodu],AylıkGiderlerÖzeti[[#This Row],[GM Kodu]],Diğer[Çek İsteğinin Başlangıç Tarihi],\">=\"&DATEVALUE(\"1.\"&AylıkGiderlerÖzeti[[#Headers],[Şubat]]&_xlfn.SINGLE(_YIL)),Diğer[Çek İsteğinin Başlangıç Tarihi],\"<=\"&E$4)","v":{"v":0,"d":"0.00 ₺"}},{"$f":"SUMIFS(GiderlerDökümü[Çek Tutarı],GiderlerDökümü[GM Kodu],AylıkGiderlerÖzeti[[#This Row],[GM Kodu]],GiderlerDökümü[Fatura Tarihi],\">=\"&F$3,GiderlerDökümü[Fatura Tarihi],\"<=\"&F$4)+SUMIFS(Diğer[Çek Tutarı],Diğer[GM Kodu],AylıkGiderlerÖzeti[[#This Row],[GM Kodu]],Diğer[Çek İsteğinin Başlangıç Tarihi],\">=\"&DATEVALUE(\"1.\"&AylıkGiderlerÖzeti[[#Headers],[Mart]]&_xlfn.SINGLE(_YIL)),Diğer[Çek İsteğinin Başlangıç Tarihi],\"<=\"&F$4)","v":{"v":0,"d":"0.00 ₺"}},{"$f":"SUMIFS(GiderlerDökümü[Çek Tutarı],GiderlerDökümü[GM Kodu],AylıkGiderlerÖzeti[[#This Row],[GM Kodu]],GiderlerDökümü[Fatura Tarihi],\">=\"&G$3,GiderlerDökümü[Fatura Tarihi],\"<=\"&G$4)+SUMIFS(Diğer[Çek Tutarı],Diğer[GM Kodu],AylıkGiderlerÖzeti[[#This Row],[GM Kodu]],Diğer[Çek İsteğinin Başlangıç Tarihi],\">=\"&DATEVALUE(\"1.\"&AylıkGiderlerÖzeti[[#Headers],[Nisan]]&_xlfn.SINGLE(_YIL)),Diğer[Çek İsteğinin Başlangıç Tarihi],\"<=\"&G$4)","v":{"v":0,"d":"0.00 ₺"}},{"$f":"SUMIFS(GiderlerDökümü[Çek Tutarı],GiderlerDökümü[GM Kodu],AylıkGiderlerÖzeti[[#This Row],[GM Kodu]],GiderlerDökümü[Fatura Tarihi],\">=\"&H$3,GiderlerDökümü[Fatura Tarihi],\"<=\"&H$4)+SUMIFS(Diğer[Çek Tutarı],Diğer[GM Kodu],AylıkGiderlerÖzeti[[#This Row],[GM Kodu]],Diğer[Çek İsteğinin Başlangıç Tarihi],\">=\"&DATEVALUE(\"1.\"&AylıkGiderlerÖzeti[[#Headers],[Mayıs]]&_xlfn.SINGLE(_YIL)),Diğer[Çek İsteğinin Başlangıç Tarihi],\"<=\"&H$4)","v":{"v":0,"d":"0.00 ₺"}},{"$f":"SUMIFS(GiderlerDökümü[Çek Tutarı],GiderlerDökümü[GM Kodu],AylıkGiderlerÖzeti[[#This Row],[GM Kodu]],GiderlerDökümü[Fatura Tarihi],\">=\"&I$3,GiderlerDökümü[Fatura Tarihi],\"<=\"&I$4)+SUMIFS(Diğer[Çek Tutarı],Diğer[GM Kodu],AylıkGiderlerÖzeti[[#This Row],[GM Kodu]],Diğer[Çek İsteğinin Başlangıç Tarihi],\">=\"&DATEVALUE(\"1.\"&AylıkGiderlerÖzeti[[#Headers],[Haziran]]&_xlfn.SINGLE(_YIL)),Diğer[Çek İsteğinin Başlangıç Tarihi],\"<=\"&I$4)","v":{"v":0,"d":"0.00 ₺"}},{"$f":"SUMIFS(GiderlerDökümü[Çek Tutarı],GiderlerDökümü[GM Kodu],AylıkGiderlerÖzeti[[#This Row],[GM Kodu]],GiderlerDökümü[Fatura Tarihi],\">=\"&J$3,GiderlerDökümü[Fatura Tarihi],\"<=\"&J$4)+SUMIFS(Diğer[Çek Tutarı],Diğer[GM Kodu],AylıkGiderlerÖzeti[[#This Row],[GM Kodu]],Diğer[Çek İsteğinin Başlangıç Tarihi],\">=\"&DATEVALUE(\"1.\"&AylıkGiderlerÖzeti[[#Headers],[Temmuz]]&_xlfn.SINGLE(_YIL)),Diğer[Çek İsteğinin Başlangıç Tarihi],\"<=\"&J$4)","v":{"v":0,"d":"0.00 ₺"}},{"$f":"SUMIFS(GiderlerDökümü[Çek Tutarı],GiderlerDökümü[GM Kodu],AylıkGiderlerÖzeti[[#This Row],[GM Kodu]],GiderlerDökümü[Fatura Tarihi],\">=\"&K$3,GiderlerDökümü[Fatura Tarihi],\"<=\"&K$4)+SUMIFS(Diğer[Çek Tutarı],Diğer[GM Kodu],AylıkGiderlerÖzeti[[#This Row],[GM Kodu]],Diğer[Çek İsteğinin Başlangıç Tarihi],\">=\"&DATEVALUE(\"1.\"&AylıkGiderlerÖzeti[[#Headers],[Ağustos]]&_xlfn.SINGLE(_YIL)),Diğer[Çek İsteğinin Başlangıç Tarihi],\"<=\"&K$4)","v":{"v":0,"d":"0.00 ₺"}},{"$f":"SUMIFS(GiderlerDökümü[Çek Tutarı],GiderlerDökümü[GM Kodu],AylıkGiderlerÖzeti[[#This Row],[GM Kodu]],GiderlerDökümü[Fatura Tarihi],\">=\"&L$3,GiderlerDökümü[Fatura Tarihi],\"<=\"&L$4)+SUMIFS(Diğer[Çek Tutarı],Diğer[GM Kodu],AylıkGiderlerÖzeti[[#This Row],[GM Kodu]],Diğer[Çek İsteğinin Başlangıç Tarihi],\">=\"&DATEVALUE(\"1.\"&AylıkGiderlerÖzeti[[#Headers],[Eylül]]&_xlfn.SINGLE(_YIL)),Diğer[Çek İsteğinin Başlangıç Tarihi],\"<=\"&L$4)","v":{"v":0,"d":"0.00 ₺"}},{"$f":"SUMIFS(GiderlerDökümü[Çek Tutarı],GiderlerDökümü[GM Kodu],AylıkGiderlerÖzeti[[#This Row],[GM Kodu]],GiderlerDökümü[Fatura Tarihi],\">=\"&M$3,GiderlerDökümü[Fatura Tarihi],\"<=\"&M$4)+SUMIFS(Diğer[Çek Tutarı],Diğer[GM Kodu],AylıkGiderlerÖzeti[[#This Row],[GM Kodu]],Diğer[Çek İsteğinin Başlangıç Tarihi],\">=\"&DATEVALUE(\"1.\"&AylıkGiderlerÖzeti[[#Headers],[Ekim]]&_xlfn.SINGLE(_YIL)),Diğer[Çek İsteğinin Başlangıç Tarihi],\"<=\"&M$4)","v":{"v":0,"d":"0.00 ₺"}},{"$f":"SUMIFS(GiderlerDökümü[Çek Tutarı],GiderlerDökümü[GM Kodu],AylıkGiderlerÖzeti[[#This Row],[GM Kodu]],GiderlerDökümü[Fatura Tarihi],\">=\"&N$3,GiderlerDökümü[Fatura Tarihi],\"<=\"&N$4)+SUMIFS(Diğer[Çek Tutarı],Diğer[GM Kodu],AylıkGiderlerÖzeti[[#This Row],[GM Kodu]],Diğer[Çek İsteğinin Başlangıç Tarihi],\">=\"&DATEVALUE(\"1.\"&AylıkGiderlerÖzeti[[#Headers],[Kasım]]&_xlfn.SINGLE(_YIL)),Diğer[Çek İsteğinin Başlangıç Tarihi],\"<=\"&N$4)","v":{"v":0,"d":"0.00 ₺"}},{"$f":"SUMIFS(GiderlerDökümü[Çek Tutarı],GiderlerDökümü[GM Kodu],AylıkGiderlerÖzeti[[#This Row],[GM Kodu]],GiderlerDökümü[Fatura Tarihi],\">=\"&O$3,GiderlerDökümü[Fatura Tarihi],\"<=\"&O$4)+SUMIFS(Diğer[Çek Tutarı],Diğer[GM Kodu],AylıkGiderlerÖzeti[[#This Row],[GM Kodu]],Diğer[Çek İsteğinin Başlangıç Tarihi],\">=\"&DATEVALUE(\"1.\"&AylıkGiderlerÖzeti[[#Headers],[Aralık]]&_xlfn.SINGLE(_YIL)),Diğer[Çek İsteğinin Başlangıç Tarihi],\"<=\"&O$4)","v":{"v":0,"d":"0.00 ₺"}},{"$f":"SUM(AylıkGiderlerÖzeti[[#This Row],[Ocak]:[Aralık]])","v":{"v":0,"d":"0.00 ₺"}}]
[null,8000,"Sağlık Planı",{"$f":"SUMIFS(GiderlerDökümü[Çek Tutarı],GiderlerDökümü[GM Kodu],AylıkGiderlerÖzeti[[#This Row],[GM Kodu]],GiderlerDökümü[Fatura Tarihi],\">=\"&D$3,GiderlerDökümü[Fatura Tarihi],\"<=\"&D$4)+SUMIFS(Diğer[Çek Tutarı],Diğer[GM Kodu],AylıkGiderlerÖzeti[[#This Row],[GM Kodu]],Diğer[Çek İsteğinin Başlangıç Tarihi],\">=\"&DATEVALUE(\"1.\"&AylıkGiderlerÖzeti[[#Headers],[Ocak]]&_xlfn.SINGLE(_YIL)),Diğer[Çek İsteğinin Başlangıç Tarihi],\"<=\"&D$4)","v":{"v":0,"d":"0.00 ₺"}},{"$f":"SUMIFS(GiderlerDökümü[Çek Tutarı],GiderlerDökümü[GM Kodu],AylıkGiderlerÖzeti[[#This Row],[GM Kodu]],GiderlerDökümü[Fatura Tarihi],\">=\"&E$3,GiderlerDökümü[Fatura Tarihi],\"<=\"&E$4)+SUMIFS(Diğer[Çek Tutarı],Diğer[GM Kodu],AylıkGiderlerÖzeti[[#This Row],[GM Kodu]],Diğer[Çek İsteğinin Başlangıç Tarihi],\">=\"&DATEVALUE(\"1.\"&AylıkGiderlerÖzeti[[#Headers],[Şubat]]&_xlfn.SINGLE(_YIL)),Diğer[Çek İsteğinin Başlangıç Tarihi],\"<=\"&E$4)","v":{"v":0,"d":"0.00 ₺"}},{"$f":"SUMIFS(GiderlerDökümü[Çek Tutarı],GiderlerDökümü[GM Kodu],AylıkGiderlerÖzeti[[#This Row],[GM Kodu]],GiderlerDökümü[Fatura Tarihi],\">=\"&F$3,GiderlerDökümü[Fatura Tarihi],\"<=\"&F$4)+SUMIFS(Diğer[Çek Tutarı],Diğer[GM Kodu],AylıkGiderlerÖzeti[[#This Row],[GM Kodu]],Diğer[Çek İsteğinin Başlangıç Tarihi],\">=\"&DATEVALUE(\"1.\"&AylıkGiderlerÖzeti[[#Headers],[Mart]]&_xlfn.SINGLE(_YIL)),Diğer[Çek İsteğinin Başlangıç Tarihi],\"<=\"&F$4)","v":{"v":0,"d":"0.00 ₺"}},{"$f":"SUMIFS(GiderlerDökümü[Çek Tutarı],GiderlerDökümü[GM Kodu],AylıkGiderlerÖzeti[[#This Row],[GM Kodu]],GiderlerDökümü[Fatura Tarihi],\">=\"&G$3,GiderlerDökümü[Fatura Tarihi],\"<=\"&G$4)+SUMIFS(Diğer[Çek Tutarı],Diğer[GM Kodu],AylıkGiderlerÖzeti[[#This Row],[GM Kodu]],Diğer[Çek İsteğinin Başlangıç Tarihi],\">=\"&DATEVALUE(\"1.\"&AylıkGiderlerÖzeti[[#Headers],[Nisan]]&_xlfn.SINGLE(_YIL)),Diğer[Çek İsteğinin Başlangıç Tarihi],\"<=\"&G$4)","v":{"v":0,"d":"0.00 ₺"}},{"$f":"SUMIFS(GiderlerDökümü[Çek Tutarı],GiderlerDökümü[GM Kodu],AylıkGiderlerÖzeti[[#This Row],[GM Kodu]],GiderlerDökümü[Fatura Tarihi],\">=\"&H$3,GiderlerDökümü[Fatura Tarihi],\"<=\"&H$4)+SUMIFS(Diğer[Çek Tutarı],Diğer[GM Kodu],AylıkGiderlerÖzeti[[#This Row],[GM Kodu]],Diğer[Çek İsteğinin Başlangıç Tarihi],\">=\"&DATEVALUE(\"1.\"&AylıkGiderlerÖzeti[[#Headers],[Mayıs]]&_xlfn.SINGLE(_YIL)),Diğer[Çek İsteğinin Başlangıç Tarihi],\"<=\"&H$4)","v":{"v":0,"d":"0.00 ₺"}},{"$f":"SUMIFS(GiderlerDökümü[Çek Tutarı],GiderlerDökümü[GM Kodu],AylıkGiderlerÖzeti[[#This Row],[GM Kodu]],GiderlerDökümü[Fatura Tarihi],\">=\"&I$3,GiderlerDökümü[Fatura Tarihi],\"<=\"&I$4)+SUMIFS(Diğer[Çek Tutarı],Diğer[GM Kodu],AylıkGiderlerÖzeti[[#This Row],[GM Kodu]],Diğer[Çek İsteğinin Başlangıç Tarihi],\">=\"&DATEVALUE(\"1.\"&AylıkGiderlerÖzeti[[#Headers],[Haziran]]&_xlfn.SINGLE(_YIL)),Diğer[Çek İsteğinin Başlangıç Tarihi],\"<=\"&I$4)","v":{"v":0,"d":"0.00 ₺"}},{"$f":"SUMIFS(GiderlerDökümü[Çek Tutarı],GiderlerDökümü[GM Kodu],AylıkGiderlerÖzeti[[#This Row],[GM Kodu]],GiderlerDökümü[Fatura Tarihi],\">=\"&J$3,GiderlerDökümü[Fatura Tarihi],\"<=\"&J$4)+SUMIFS(Diğer[Çek Tutarı],Diğer[GM Kodu],AylıkGiderlerÖzeti[[#This Row],[GM Kodu]],Diğer[Çek İsteğinin Başlangıç Tarihi],\">=\"&DATEVALUE(\"1.\"&AylıkGiderlerÖzeti[[#Headers],[Temmuz]]&_xlfn.SINGLE(_YIL)),Diğer[Çek İsteğinin Başlangıç Tarihi],\"<=\"&J$4)","v":{"v":0,"d":"0.00 ₺"}},{"$f":"SUMIFS(GiderlerDökümü[Çek Tutarı],GiderlerDökümü[GM Kodu],AylıkGiderlerÖzeti[[#This Row],[GM Kodu]],GiderlerDökümü[Fatura Tarihi],\">=\"&K$3,GiderlerDökümü[Fatura Tarihi],\"<=\"&K$4)+SUMIFS(Diğer[Çek Tutarı],Diğer[GM Kodu],AylıkGiderlerÖzeti[[#This Row],[GM Kodu]],Diğer[Çek İsteğinin Başlangıç Tarihi],\">=\"&DATEVALUE(\"1.\"&AylıkGiderlerÖzeti[[#Headers],[Ağustos]]&_xlfn.SINGLE(_YIL)),Diğer[Çek İsteğinin Başlangıç Tarihi],\"<=\"&K$4)","v":{"v":0,"d":"0.00 ₺"}},{"$f":"SUMIFS(GiderlerDökümü[Çek Tutarı],GiderlerDökümü[GM Kodu],AylıkGiderlerÖzeti[[#This Row],[GM Kodu]],GiderlerDökümü[Fatura Tarihi],\">=\"&L$3,GiderlerDökümü[Fatura Tarihi],\"<=\"&L$4)+SUMIFS(Diğer[Çek Tutarı],Diğer[GM Kodu],AylıkGiderlerÖzeti[[#This Row],[GM Kodu]],Diğer[Çek İsteğinin Başlangıç Tarihi],\">=\"&DATEVALUE(\"1.\"&AylıkGiderlerÖzeti[[#Headers],[Eylül]]&_xlfn.SINGLE(_YIL)),Diğer[Çek İsteğinin Başlangıç Tarihi],\"<=\"&L$4)","v":{"v":0,"d":"0.00 ₺"}},{"$f":"SUMIFS(GiderlerDökümü[Çek Tutarı],GiderlerDökümü[GM Kodu],AylıkGiderlerÖzeti[[#This Row],[GM Kodu]],GiderlerDökümü[Fatura Tarihi],\">=\"&M$3,GiderlerDökümü[Fatura Tarihi],\"<=\"&M$4)+SUMIFS(Diğer[Çek Tutarı],Diğer[GM Kodu],AylıkGiderlerÖzeti[[#This Row],[GM Kodu]],Diğer[Çek İsteğinin Başlangıç Tarihi],\">=\"&DATEVALUE(\"1.\"&AylıkGiderlerÖzeti[[#Headers],[Ekim]]&_xlfn.SINGLE(_YIL)),Diğer[Çek İsteğinin Başlangıç Tarihi],\"<=\"&M$4)","v":{"v":0,"d":"0.00 ₺"}},{"$f":"SUMIFS(GiderlerDökümü[Çek Tutarı],GiderlerDökümü[GM Kodu],AylıkGiderlerÖzeti[[#This Row],[GM Kodu]],GiderlerDökümü[Fatura Tarihi],\">=\"&N$3,GiderlerDökümü[Fatura Tarihi],\"<=\"&N$4)+SUMIFS(Diğer[Çek Tutarı],Diğer[GM Kodu],AylıkGiderlerÖzeti[[#This Row],[GM Kodu]],Diğer[Çek İsteğinin Başlangıç Tarihi],\">=\"&DATEVALUE(\"1.\"&AylıkGiderlerÖzeti[[#Headers],[Kasım]]&_xlfn.SINGLE(_YIL)),Diğer[Çek İsteğinin Başlangıç Tarihi],\"<=\"&N$4)","v":{"v":0,"d":"0.00 ₺"}},{"$f":"SUMIFS(GiderlerDökümü[Çek Tutarı],GiderlerDökümü[GM Kodu],AylıkGiderlerÖzeti[[#This Row],[GM Kodu]],GiderlerDökümü[Fatura Tarihi],\">=\"&O$3,GiderlerDökümü[Fatura Tarihi],\"<=\"&O$4)+SUMIFS(Diğer[Çek Tutarı],Diğer[GM Kodu],AylıkGiderlerÖzeti[[#This Row],[GM Kodu]],Diğer[Çek İsteğinin Başlangıç Tarihi],\">=\"&DATEVALUE(\"1.\"&AylıkGiderlerÖzeti[[#Headers],[Aralık]]&_xlfn.SINGLE(_YIL)),Diğer[Çek İsteğinin Başlangıç Tarihi],\"<=\"&O$4)","v":{"v":0,"d":"0.00 ₺"}},{"$f":"SUM(AylıkGiderlerÖzeti[[#This Row],[Ocak]:[Aralık]])","v":{"v":0,"d":"0.00 ₺"}}]
[null,9000,"Bina Maliyetleri",{"$f":"SUMIFS(GiderlerDökümü[Çek Tutarı],GiderlerDökümü[GM Kodu],AylıkGiderlerÖzeti[[#This Row],[GM Kodu]],GiderlerDökümü[Fatura Tarihi],\">=\"&D$3,GiderlerDökümü[Fatura Tarihi],\"<=\"&D$4)+SUMIFS(Diğer[Çek Tutarı],Diğer[GM Kodu],AylıkGiderlerÖzeti[[#This Row],[GM Kodu]],Diğer[Çek İsteğinin Başlangıç Tarihi],\">=\"&DATEVALUE(\"1.\"&AylıkGiderlerÖzeti[[#Headers],[Ocak]]&_xlfn.SINGLE(_YIL)),Diğer[Çek İsteğinin Başlangıç Tarihi],\"<=\"&D$4)","v":{"v":0,"d":"0.00 ₺"}},{"$f":"SUMIFS(GiderlerDökümü[Çek Tutarı],GiderlerDökümü[GM Kodu],AylıkGiderlerÖzeti[[#This Row],[GM Kodu]],GiderlerDökümü[Fatura Tarihi],\">=\"&E$3,GiderlerDökümü[Fatura Tarihi],\"<=\"&E$4)+SUMIFS(Diğer[Çek Tutarı],Diğer[GM Kodu],AylıkGiderlerÖzeti[[#This Row],[GM Kodu]],Diğer[Çek İsteğinin Başlangıç Tarihi],\">=\"&DATEVALUE(\"1.\"&AylıkGiderlerÖzeti[[#Headers],[Şubat]]&_xlfn.SINGLE(_YIL)),Diğer[Çek İsteğinin Başlangıç Tarihi],\"<=\"&E$4)","v":{"v":0,"d":"0.00 ₺"}},{"$f":"SUMIFS(GiderlerDökümü[Çek Tutarı],GiderlerDökümü[GM Kodu],AylıkGiderlerÖzeti[[#This Row],[GM Kodu]],GiderlerDökümü[Fatura Tarihi],\">=\"&F$3,GiderlerDökümü[Fatura Tarihi],\"<=\"&F$4)+SUMIFS(Diğer[Çek Tutarı],Diğer[GM Kodu],AylıkGiderlerÖzeti[[#This Row],[GM Kodu]],Diğer[Çek İsteğinin Başlangıç Tarihi],\">=\"&DATEVALUE(\"1.\"&AylıkGiderlerÖzeti[[#Headers],[Mart]]&_xlfn.SINGLE(_YIL)),Diğer[Çek İsteğinin Başlangıç Tarihi],\"<=\"&F$4)","v":{"v":0,"d":"0.00 ₺"}},{"$f":"SUMIFS(GiderlerDökümü[Çek Tutarı],GiderlerDökümü[GM Kodu],AylıkGiderlerÖzeti[[#This Row],[GM Kodu]],GiderlerDökümü[Fatura Tarihi],\">=\"&G$3,GiderlerDökümü[Fatura Tarihi],\"<=\"&G$4)+SUMIFS(Diğer[Çek Tutarı],Diğer[GM Kodu],AylıkGiderlerÖzeti[[#This Row],[GM Kodu]],Diğer[Çek İsteğinin Başlangıç Tarihi],\">=\"&DATEVALUE(\"1.\"&AylıkGiderlerÖzeti[[#Headers],[Nisan]]&_xlfn.SINGLE(_YIL)),Diğer[Çek İsteğinin Başlangıç Tarihi],\"<=\"&G$4)","v":{"v":0,"d":"0.00 ₺"}},{"$f":"SUMIFS(GiderlerDökümü[Çek Tutarı],GiderlerDökümü[GM Kodu],AylıkGiderlerÖzeti[[#This Row],[GM Kodu]],GiderlerDökümü[Fatura Tarihi],\">=\"&H$3,GiderlerDökümü[Fatura Tarihi],\"<=\"&H$4)+SUMIFS(Diğer[Çek Tutarı],Diğer[GM Kodu],AylıkGiderlerÖzeti[[#This Row],[GM Kodu]],Diğer[Çek İsteğinin Başlangıç Tarihi],\">=\"&DATEVALUE(\"1.\"&AylıkGiderlerÖzeti[[#Headers],[Mayıs]]&_xlfn.SINGLE(_YIL)),Diğer[Çek İsteğinin Başlangıç Tarihi],\"<=\"&H$4)","v":{"v":0,"d":"0.00 ₺"}},{"$f":"SUMIFS(GiderlerDökümü[Çek Tutarı],GiderlerDökümü[GM Kodu],AylıkGiderlerÖzeti[[#This Row],[GM Kodu]],GiderlerDökümü[Fatura Tarihi],\">=\"&I$3,GiderlerDökümü[Fatura Tarihi],\"<=\"&I$4)+SUMIFS(Diğer[Çek Tutarı],Diğer[GM Kodu],AylıkGiderlerÖzeti[[#This Row],[GM Kodu]],Diğer[Çek İsteğinin Başlangıç Tarihi],\">=\"&DATEVALUE(\"1.\"&AylıkGiderlerÖzeti[[#Headers],[Haziran]]&_xlfn.SINGLE(_YIL)),Diğer[Çek İsteğinin Başlangıç Tarihi],\"<=\"&I$4)","v":{"v":0,"d":"0.00 ₺"}},{"$f":"SUMIFS(GiderlerDökümü[Çek Tutarı],GiderlerDökümü[GM Kodu],AylıkGiderlerÖzeti[[#This Row],[GM Kodu]],GiderlerDökümü[Fatura Tarihi],\">=\"&J$3,GiderlerDökümü[Fatura Tarihi],\"<=\"&J$4)+SUMIFS(Diğer[Çek Tutarı],Diğer[GM Kodu],AylıkGiderlerÖzeti[[#This Row],[GM Kodu]],Diğer[Çek İsteğinin Başlangıç Tarihi],\">=\"&DATEVALUE(\"1.\"&AylıkGiderlerÖzeti[[#Headers],[Temmuz]]&_xlfn.SINGLE(_YIL)),Diğer[Çek İsteğinin Başlangıç Tarihi],\"<=\"&J$4)","v":{"v":0,"d":"0.00 ₺"}},{"$f":"SUMIFS(GiderlerDökümü[Çek Tutarı],GiderlerDökümü[GM Kodu],AylıkGiderlerÖzeti[[#This Row],[GM Kodu]],GiderlerDökümü[Fatura Tarihi],\">=\"&K$3,GiderlerDökümü[Fatura Tarihi],\"<=\"&K$4)+SUMIFS(Diğer[Çek Tutarı],Diğer[GM Kodu],AylıkGiderlerÖzeti[[#This Row],[GM Kodu]],Diğer[Çek İsteğinin Başlangıç Tarihi],\">=\"&DATEVALUE(\"1.\"&AylıkGiderlerÖzeti[[#Headers],[Ağustos]]&_xlfn.SINGLE(_YIL)),Diğer[Çek İsteğinin Başlangıç Tarihi],\"<=\"&K$4)","v":{"v":0,"d":"0.00 ₺"}},{"$f":"SUMIFS(GiderlerDökümü[Çek Tutarı],GiderlerDökümü[GM Kodu],AylıkGiderlerÖzeti[[#This Row],[GM Kodu]],GiderlerDökümü[Fatura Tarihi],\">=\"&L$3,GiderlerDökümü[Fatura Tarihi],\"<=\"&L$4)+SUMIFS(Diğer[Çek Tutarı],Diğer[GM Kodu],AylıkGiderlerÖzeti[[#This Row],[GM Kodu]],Diğer[Çek İsteğinin Başlangıç Tarihi],\">=\"&DATEVALUE(\"1.\"&AylıkGiderlerÖzeti[[#Headers],[Eylül]]&_xlfn.SINGLE(_YIL)),Diğer[Çek İsteğinin Başlangıç Tarihi],\"<=\"&L$4)","v":{"v":0,"d":"0.00 ₺"}},{"$f":"SUMIFS(GiderlerDökümü[Çek Tutarı],GiderlerDökümü[GM Kodu],AylıkGiderlerÖzeti[[#This Row],[GM Kodu]],GiderlerDökümü[Fatura Tarihi],\">=\"&M$3,GiderlerDökümü[Fatura Tarihi],\"<=\"&M$4)+SUMIFS(Diğer[Çek Tutarı],Diğer[GM Kodu],AylıkGiderlerÖzeti[[#This Row],[GM Kodu]],Diğer[Çek İsteğinin Başlangıç Tarihi],\">=\"&DATEVALUE(\"1.\"&AylıkGiderlerÖzeti[[#Headers],[Ekim]]&_xlfn.SINGLE(_YIL)),Diğer[Çek İsteğinin Başlangıç Tarihi],\"<=\"&M$4)","v":{"v":0,"d":"0.00 ₺"}},{"$f":"SUMIFS(GiderlerDökümü[Çek Tutarı],GiderlerDökümü[GM Kodu],AylıkGiderlerÖzeti[[#This Row],[GM Kodu]],GiderlerDökümü[Fatura Tarihi],\">=\"&N$3,GiderlerDökümü[Fatura Tarihi],\"<=\"&N$4)+SUMIFS(Diğer[Çek Tutarı],Diğer[GM Kodu],AylıkGiderlerÖzeti[[#This Row],[GM Kodu]],Diğer[Çek İsteğinin Başlangıç Tarihi],\">=\"&DATEVALUE(\"1.\"&AylıkGiderlerÖzeti[[#Headers],[Kasım]]&_xlfn.SINGLE(_YIL)),Diğer[Çek İsteğinin Başlangıç Tarihi],\"<=\"&N$4)","v":{"v":0,"d":"0.00 ₺"}},{"$f":"SUMIFS(GiderlerDökümü[Çek Tutarı],GiderlerDökümü[GM Kodu],AylıkGiderlerÖzeti[[#This Row],[GM Kodu]],GiderlerDökümü[Fatura Tarihi],\">=\"&O$3,GiderlerDökümü[Fatura Tarihi],\"<=\"&O$4)+SUMIFS(Diğer[Çek Tutarı],Diğer[GM Kodu],AylıkGiderlerÖzeti[[#This Row],[GM Kodu]],Diğer[Çek İsteğinin Başlangıç Tarihi],\">=\"&DATEVALUE(\"1.\"&AylıkGiderlerÖzeti[[#Headers],[Aralık]]&_xlfn.SINGLE(_YIL)),Diğer[Çek İsteğinin Başlangıç Tarihi],\"<=\"&O$4)","v":{"v":0,"d":"0.00 ₺"}},{"$f":"SUM(AylıkGiderlerÖzeti[[#This Row],[Ocak]:[Aralık]])","v":{"v":0,"d":"0.00 ₺"}}]
[null,10000,"Pazarlama",{"$f":"SUMIFS(GiderlerDökümü[Çek Tutarı],GiderlerDökümü[GM Kodu],AylıkGiderlerÖzeti[[#This Row],[GM Kodu]],GiderlerDökümü[Fatura Tarihi],\">=\"&D$3,GiderlerDökümü[Fatura Tarihi],\"<=\"&D$4)+SUMIFS(Diğer[Çek Tutarı],Diğer[GM Kodu],AylıkGiderlerÖzeti[[#This Row],[GM Kodu]],Diğer[Çek İsteğinin Başlangıç Tarihi],\">=\"&DATEVALUE(\"1.\"&AylıkGiderlerÖzeti[[#Headers],[Ocak]]&_xlfn.SINGLE(_YIL)),Diğer[Çek İsteğinin Başlangıç Tarihi],\"<=\"&D$4)","v":{"v":0,"d":"0.00 ₺"}},{"$f":"SUMIFS(GiderlerDökümü[Çek Tutarı],GiderlerDökümü[GM Kodu],AylıkGiderlerÖzeti[[#This Row],[GM Kodu]],GiderlerDökümü[Fatura Tarihi],\">=\"&E$3,GiderlerDökümü[Fatura Tarihi],\"<=\"&E$4)+SUMIFS(Diğer[Çek Tutarı],Diğer[GM Kodu],AylıkGiderlerÖzeti[[#This Row],[GM Kodu]],Diğer[Çek İsteğinin Başlangıç Tarihi],\">=\"&DATEVALUE(\"1.\"&AylıkGiderlerÖzeti[[#Headers],[Şubat]]&_xlfn.SINGLE(_YIL)),Diğer[Çek İsteğinin Başlangıç Tarihi],\"<=\"&E$4)","v":{"v":0,"d":"0.00 ₺"}},{"$f":"SUMIFS(GiderlerDökümü[Çek Tutarı],GiderlerDökümü[GM Kodu],AylıkGiderlerÖzeti[[#This Row],[GM Kodu]],GiderlerDökümü[Fatura Tarihi],\">=\"&F$3,GiderlerDökümü[Fatura Tarihi],\"<=\"&F$4)+SUMIFS(Diğer[Çek Tutarı],Diğer[GM Kodu],AylıkGiderlerÖzeti[[#This Row],[GM Kodu]],Diğer[Çek İsteğinin Başlangıç Tarihi],\">=\"&DATEVALUE(\"1.\"&AylıkGiderlerÖzeti[[#Headers],[Mart]]&_xlfn.SINGLE(_YIL)),Diğer[Çek İsteğinin Başlangıç Tarihi],\"<=\"&F$4)","v":{"v":0,"d":"0.00 ₺"}},{"$f":"SUMIFS(GiderlerDökümü[Çek Tutarı],GiderlerDökümü[GM Kodu],AylıkGiderlerÖzeti[[#This Row],[GM Kodu]],GiderlerDökümü[Fatura Tarihi],\">=\"&G$3,GiderlerDökümü[Fatura Tarihi],\"<=\"&G$4)+SUMIFS(Diğer[Çek Tutarı],Diğer[GM Kodu],AylıkGiderlerÖzeti[[#This Row],[GM Kodu]],Diğer[Çek İsteğinin Başlangıç Tarihi],\">=\"&DATEVALUE(\"1.\"&AylıkGiderlerÖzeti[[#Headers],[Nisan]]&_xlfn.SINGLE(_YIL)),Diğer[Çek İsteğinin Başlangıç Tarihi],\"<=\"&G$4)","v":{"v":0,"d":"0.00 ₺"}},{"$f":"SUMIFS(GiderlerDökümü[Çek Tutarı],GiderlerDökümü[GM Kodu],AylıkGiderlerÖzeti[[#This Row],[GM Kodu]],GiderlerDökümü[Fatura Tarihi],\">=\"&H$3,GiderlerDökümü[Fatura Tarihi],\"<=\"&H$4)+SUMIFS(Diğer[Çek Tutarı],Diğer[GM Kodu],AylıkGiderlerÖzeti[[#This Row],[GM Kodu]],Diğer[Çek İsteğinin Başlangıç Tarihi],\">=\"&DATEVALUE(\"1.\"&AylıkGiderlerÖzeti[[#Headers],[Mayıs]]&_xlfn.SINGLE(_YIL)),Diğer[Çek İsteğinin Başlangıç Tarihi],\"<=\"&H$4)","v":{"v":0,"d":"0.00 ₺"}},{"$f":"SUMIFS(GiderlerDökümü[Çek Tutarı],GiderlerDökümü[GM Kodu],AylıkGiderlerÖzeti[[#This Row],[GM Kodu]],GiderlerDökümü[Fatura Tarihi],\">=\"&I$3,GiderlerDökümü[Fatura Tarihi],\"<=\"&I$4)+SUMIFS(Diğer[Çek Tutarı],Diğer[GM Kodu],AylıkGiderlerÖzeti[[#This Row],[GM Kodu]],Diğer[Çek İsteğinin Başlangıç Tarihi],\">=\"&DATEVALUE(\"1.\"&AylıkGiderlerÖzeti[[#Headers],[Haziran]]&_xlfn.SINGLE(_YIL)),Diğer[Çek İsteğinin Başlangıç Tarihi],\"<=\"&I$4)","v":{"v":0,"d":"0.00 ₺"}},{"$f":"SUMIFS(GiderlerDökümü[Çek Tutarı],GiderlerDökümü[GM Kodu],AylıkGiderlerÖzeti[[#This Row],[GM Kodu]],GiderlerDökümü[Fatura Tarihi],\">=\"&J$3,GiderlerDökümü[Fatura Tarihi],\"<=\"&J$4)+SUMIFS(Diğer[Çek Tutarı],Diğer[GM Kodu],AylıkGiderlerÖzeti[[#This Row],[GM Kodu]],Diğer[Çek İsteğinin Başlangıç Tarihi],\">=\"&DATEVALUE(\"1.\"&AylıkGiderlerÖzeti[[#Headers],[Temmuz]]&_xlfn.SINGLE(_YIL)),Diğer[Çek İsteğinin Başlangıç Tarihi],\"<=\"&J$4)","v":{"v":0,"d":"0.00 ₺"}},{"$f":"SUMIFS(GiderlerDökümü[Çek Tutarı],GiderlerDökümü[GM Kodu],AylıkGiderlerÖzeti[[#This Row],[GM Kodu]],GiderlerDökümü[Fatura Tarihi],\">=\"&K$3,GiderlerDökümü[Fatura Tarihi],\"<=\"&K$4)+SUMIFS(Diğer[Çek Tutarı],Diğer[GM Kodu],AylıkGiderlerÖzeti[[#This Row],[GM Kodu]],Diğer[Çek İsteğinin Başlangıç Tarihi],\">=\"&DATEVALUE(\"1.\"&AylıkGiderlerÖzeti[[#Headers],[Ağustos]]&_xlfn.SINGLE(_YIL)),Diğer[Çek İsteğinin Başlangıç Tarihi],\"<=\"&K$4)","v":{"v":0,"d":"0.00 ₺"}},{"$f":"SUMIFS(GiderlerDökümü[Çek Tutarı],GiderlerDökümü[GM Kodu],AylıkGiderlerÖzeti[[#This Row],[GM Kodu]],GiderlerDökümü[Fatura Tarihi],\">=\"&L$3,GiderlerDökümü[Fatura Tarihi],\"<=\"&L$4)+SUMIFS(Diğer[Çek Tutarı],Diğer[GM Kodu],AylıkGiderlerÖzeti[[#This Row],[GM Kodu]],Diğer[Çek İsteğinin Başlangıç Tarihi],\">=\"&DATEVALUE(\"1.\"&AylıkGiderlerÖzeti[[#Headers],[Eylül]]&_xlfn.SINGLE(_YIL)),Diğer[Çek İsteğinin Başlangıç Tarihi],\"<=\"&L$4)","v":{"v":0,"d":"0.00 ₺"}},{"$f":"SUMIFS(GiderlerDökümü[Çek Tutarı],GiderlerDökümü[GM Kodu],AylıkGiderlerÖzeti[[#This Row],[GM Kodu]],GiderlerDökümü[Fatura Tarihi],\">=\"&M$3,GiderlerDökümü[Fatura Tarihi],\"<=\"&M$4)+SUMIFS(Diğer[Çek Tutarı],Diğer[GM Kodu],AylıkGiderlerÖzeti[[#This Row],[GM Kodu]],Diğer[Çek İsteğinin Başlangıç Tarihi],\">=\"&DATEVALUE(\"1.\"&AylıkGiderlerÖzeti[[#Headers],[Ekim]]&_xlfn.SINGLE(_YIL)),Diğer[Çek İsteğinin Başlangıç Tarihi],\"<=\"&M$4)","v":{"v":0,"d":"0.00 ₺"}},{"$f":"SUMIFS(GiderlerDökümü[Çek Tutarı],GiderlerDökümü[GM Kodu],AylıkGiderlerÖzeti[[#This Row],[GM Kodu]],GiderlerDökümü[Fatura Tarihi],\">=\"&N$3,GiderlerDökümü[Fatura Tarihi],\"<=\"&N$4)+SUMIFS(Diğer[Çek Tutarı],Diğer[GM Kodu],AylıkGiderlerÖzeti[[#This Row],[GM Kodu]],Diğer[Çek İsteğinin Başlangıç Tarihi],\">=\"&DATEVALUE(\"1.\"&AylıkGiderlerÖzeti[[#Headers],[Kasım]]&_xlfn.SINGLE(_YIL)),Diğer[Çek İsteğinin Başlangıç Tarihi],\"<=\"&N$4)","v":{"v":0,"d":"0.00 ₺"}},{"$f":"SUMIFS(GiderlerDökümü[Çek Tutarı],GiderlerDökümü[GM Kodu],AylıkGiderlerÖzeti[[#This Row],[GM Kodu]],GiderlerDökümü[Fatura Tarihi],\">=\"&O$3,GiderlerDökümü[Fatura Tarihi],\"<=\"&O$4)+SUMIFS(Diğer[Çek Tutarı],Diğer[GM Kodu],AylıkGiderlerÖzeti[[#This Row],[GM Kodu]],Diğer[Çek İsteğinin Başlangıç Tarihi],\">=\"&DATEVALUE(\"1.\"&AylıkGiderlerÖzeti[[#Headers],[Aralık]]&_xlfn.SINGLE(_YIL)),Diğer[Çek İsteğinin Başlangıç Tarihi],\"<=\"&O$4)","v":{"v":0,"d":"0.00 ₺"}},{"$f":"SUM(AylıkGiderlerÖzeti[[#This Row],[Ocak]:[Aralık]])","v":{"v":0,"d":"0.00 ₺"}}]
[null,11000,"Hayır İşleri",{"$f":"SUMIFS(GiderlerDökümü[Çek Tutarı],GiderlerDökümü[GM Kodu],AylıkGiderlerÖzeti[[#This Row],[GM Kodu]],GiderlerDökümü[Fatura Tarihi],\">=\"&D$3,GiderlerDökümü[Fatura Tarihi],\"<=\"&D$4)+SUMIFS(Diğer[Çek Tutarı],Diğer[GM Kodu],AylıkGiderlerÖzeti[[#This Row],[GM Kodu]],Diğer[Çek İsteğinin Başlangıç Tarihi],\">=\"&DATEVALUE(\"1.\"&AylıkGiderlerÖzeti[[#Headers],[Ocak]]&_xlfn.SINGLE(_YIL)),Diğer[Çek İsteğinin Başlangıç Tarihi],\"<=\"&D$4)","v":{"v":0,"d":"0.00 ₺"}},{"$f":"SUMIFS(GiderlerDökümü[Çek Tutarı],GiderlerDökümü[GM Kodu],AylıkGiderlerÖzeti[[#This Row],[GM Kodu]],GiderlerDökümü[Fatura Tarihi],\">=\"&E$3,GiderlerDökümü[Fatura Tarihi],\"<=\"&E$4)+SUMIFS(Diğer[Çek Tutarı],Diğer[GM Kodu],AylıkGiderlerÖzeti[[#This Row],[GM Kodu]],Diğer[Çek İsteğinin Başlangıç Tarihi],\">=\"&DATEVALUE(\"1.\"&AylıkGiderlerÖzeti[[#Headers],[Şubat]]&_xlfn.SINGLE(_YIL)),Diğer[Çek İsteğinin Başlangıç Tarihi],\"<=\"&E$4)","v":{"v":0,"d":"0.00 ₺"}},{"$f":"SUMIFS(GiderlerDökümü[Çek Tutarı],GiderlerDökümü[GM Kodu],AylıkGiderlerÖzeti[[#This Row],[GM Kodu]],GiderlerDökümü[Fatura Tarihi],\">=\"&F$3,GiderlerDökümü[Fatura Tarihi],\"<=\"&F$4)+SUMIFS(Diğer[Çek Tutarı],Diğer[GM Kodu],AylıkGiderlerÖzeti[[#This Row],[GM Kodu]],Diğer[Çek İsteğinin Başlangıç Tarihi],\">=\"&DATEVALUE(\"1.\"&AylıkGiderlerÖzeti[[#Headers],[Mart]]&_xlfn.SINGLE(_YIL)),Diğer[Çek İsteğinin Başlangıç Tarihi],\"<=\"&F$4)","v":{"v":0,"d":"0.00 ₺"}},{"$f":"SUMIFS(GiderlerDökümü[Çek Tutarı],GiderlerDökümü[GM Kodu],AylıkGiderlerÖzeti[[#This Row],[GM Kodu]],GiderlerDökümü[Fatura Tarihi],\">=\"&G$3,GiderlerDökümü[Fatura Tarihi],\"<=\"&G$4)+SUMIFS(Diğer[Çek Tutarı],Diğer[GM Kodu],AylıkGiderlerÖzeti[[#This Row],[GM Kodu]],Diğer[Çek İsteğinin Başlangıç Tarihi],\">=\"&DATEVALUE(\"1.\"&AylıkGiderlerÖzeti[[#Headers],[Nisan]]&_xlfn.SINGLE(_YIL)),Diğer[Çek İsteğinin Başlangıç Tarihi],\"<=\"&G$4)","v":{"v":0,"d":"0.00 ₺"}},{"$f":"SUMIFS(GiderlerDökümü[Çek Tutarı],GiderlerDökümü[GM Kodu],AylıkGiderlerÖzeti[[#This Row],[GM Kodu]],GiderlerDökümü[Fatura Tarihi],\">=\"&H$3,GiderlerDökümü[Fatura Tarihi],\"<=\"&H$4)+SUMIFS(Diğer[Çek Tutarı],Diğer[GM Kodu],AylıkGiderlerÖzeti[[#This Row],[GM Kodu]],Diğer[Çek İsteğinin Başlangıç Tarihi],\">=\"&DATEVALUE(\"1.\"&AylıkGiderlerÖzeti[[#Headers],[Mayıs]]&_xlfn.SINGLE(_YIL)),Diğer[Çek İsteğinin Başlangıç Tarihi],\"<=\"&H$4)","v":{"v":0,"d":"0.00 ₺"}},{"$f":"SUMIFS(GiderlerDökümü[Çek Tutarı],GiderlerDökümü[GM Kodu],AylıkGiderlerÖzeti[[#This Row],[GM Kodu]],GiderlerDökümü[Fatura Tarihi],\">=\"&I$3,GiderlerDökümü[Fatura Tarihi],\"<=\"&I$4)+SUMIFS(Diğer[Çek Tutarı],Diğer[GM Kodu],AylıkGiderlerÖzeti[[#This Row],[GM Kodu]],Diğer[Çek İsteğinin Başlangıç Tarihi],\">=\"&DATEVALUE(\"1.\"&AylıkGiderlerÖzeti[[#Headers],[Haziran]]&_xlfn.SINGLE(_YIL)),Diğer[Çek İsteğinin Başlangıç Tarihi],\"<=\"&I$4)","v":{"v":0,"d":"0.00 ₺"}},{"$f":"SUMIFS(GiderlerDökümü[Çek Tutarı],GiderlerDökümü[GM Kodu],AylıkGiderlerÖzeti[[#This Row],[GM Kodu]],GiderlerDökümü[Fatura Tarihi],\">=\"&J$3,GiderlerDökümü[Fatura Tarihi],\"<=\"&J$4)+SUMIFS(Diğer[Çek Tutarı],Diğer[GM Kodu],AylıkGiderlerÖzeti[[#This Row],[GM Kodu]],Diğer[Çek İsteğinin Başlangıç Tarihi],\">=\"&DATEVALUE(\"1.\"&AylıkGiderlerÖzeti[[#Headers],[Temmuz]]&_xlfn.SINGLE(_YIL)),Diğer[Çek İsteğinin Başlangıç Tarihi],\"<=\"&J$4)","v":{"v":0,"d":"0.00 ₺"}},{"$f":"SUMIFS(GiderlerDökümü[Çek Tutarı],GiderlerDökümü[GM Kodu],AylıkGiderlerÖzeti[[#This Row],[GM Kodu]],GiderlerDökümü[Fatura Tarihi],\">=\"&K$3,GiderlerDökümü[Fatura Tarihi],\"<=\"&K$4)+SUMIFS(Diğer[Çek Tutarı],Diğer[GM Kodu],AylıkGiderlerÖzeti[[#This Row],[GM Kodu]],Diğer[Çek İsteğinin Başlangıç Tarihi],\">=\"&DATEVALUE(\"1.\"&AylıkGiderlerÖzeti[[#Headers],[Ağustos]]&_xlfn.SINGLE(_YIL)),Diğer[Çek İsteğinin Başlangıç Tarihi],\"<=\"&K$4)","v":{"v":0,"d":"0.00 ₺"}},{"$f":"SUMIFS(GiderlerDökümü[Çek Tutarı],GiderlerDökümü[GM Kodu],AylıkGiderlerÖzeti[[#This Row],[GM Kodu]],GiderlerDökümü[Fatura Tarihi],\">=\"&L$3,GiderlerDökümü[Fatura Tarihi],\"<=\"&L$4)+SUMIFS(Diğer[Çek Tutarı],Diğer[GM Kodu],AylıkGiderlerÖzeti[[#This Row],[GM Kodu]],Diğer[Çek İsteğinin Başlangıç Tarihi],\">=\"&DATEVALUE(\"1.\"&AylıkGiderlerÖzeti[[#Headers],[Eylül]]&_xlfn.SINGLE(_YIL)),Diğer[Çek İsteğinin Başlangıç Tarihi],\"<=\"&L$4)","v":{"v":0,"d":"0.00 ₺"}},{"$f":"SUMIFS(GiderlerDökümü[Çek Tutarı],GiderlerDökümü[GM Kodu],AylıkGiderlerÖzeti[[#This Row],[GM Kodu]],GiderlerDökümü[Fatura Tarihi],\">=\"&M$3,GiderlerDökümü[Fatura Tarihi],\"<=\"&M$4)+SUMIFS(Diğer[Çek Tutarı],Diğer[GM Kodu],AylıkGiderlerÖzeti[[#This Row],[GM Kodu]],Diğer[Çek İsteğinin Başlangıç Tarihi],\">=\"&DATEVALUE(\"1.\"&AylıkGiderlerÖzeti[[#Headers],[Ekim]]&_xlfn.SINGLE(_YIL)),Diğer[Çek İsteğinin Başlangıç Tarihi],\"<=\"&M$4)","v":{"v":0,"d":"0.00 ₺"}},{"$f":"SUMIFS(GiderlerDökümü[Çek Tutarı],GiderlerDökümü[GM Kodu],AylıkGiderlerÖzeti[[#This Row],[GM Kodu]],GiderlerDökümü[Fatura Tarihi],\">=\"&N$3,GiderlerDökümü[Fatura Tarihi],\"<=\"&N$4)+SUMIFS(Diğer[Çek Tutarı],Diğer[GM Kodu],AylıkGiderlerÖzeti[[#This Row],[GM Kodu]],Diğer[Çek İsteğinin Başlangıç Tarihi],\">=\"&DATEVALUE(\"1.\"&AylıkGiderlerÖzeti[[#Headers],[Kasım]]&_xlfn.SINGLE(_YIL)),Diğer[Çek İsteğinin Başlangıç Tarihi],\"<=\"&N$4)","v":{"v":0,"d":"0.00 ₺"}},{"$f":"SUMIFS(GiderlerDökümü[Çek Tutarı],GiderlerDökümü[GM Kodu],AylıkGiderlerÖzeti[[#This Row],[GM Kodu]],GiderlerDökümü[Fatura Tarihi],\">=\"&O$3,GiderlerDökümü[Fatura Tarihi],\"<=\"&O$4)+SUMIFS(Diğer[Çek Tutarı],Diğer[GM Kodu],AylıkGiderlerÖzeti[[#This Row],[GM Kodu]],Diğer[Çek İsteğinin Başlangıç Tarihi],\">=\"&DATEVALUE(\"1.\"&AylıkGiderlerÖzeti[[#Headers],[Aralık]]&_xlfn.SINGLE(_YIL)),Diğer[Çek İsteğinin Başlangıç Tarihi],\"<=\"&O$4)","v":{"v":0,"d":"0.00 ₺"}},{"$f":"SUM(AylıkGiderlerÖzeti[[#This Row],[Ocak]:[Aralık]])","v":{"v":0,"d":"0.00 ₺"}}]
[null,12000,"Sponsorluklar",{"$f":"SUMIFS(GiderlerDökümü[Çek Tutarı],GiderlerDökümü[GM Kodu],AylıkGiderlerÖzeti[[#This Row],[GM Kodu]],GiderlerDökümü[Fatura Tarihi],\">=\"&D$3,GiderlerDökümü[Fatura Tarihi],\"<=\"&D$4)+SUMIFS(Diğer[Çek Tutarı],Diğer[GM Kodu],AylıkGiderlerÖzeti[[#This Row],[GM Kodu]],Diğer[Çek İsteğinin Başlangıç Tarihi],\">=\"&DATEVALUE(\"1.\"&AylıkGiderlerÖzeti[[#Headers],[Ocak]]&_xlfn.SINGLE(_YIL)),Diğer[Çek İsteğinin Başlangıç Tarihi],\"<=\"&D$4)","v":{"v":0,"d":"0.00 ₺"}},{"$f":"SUMIFS(GiderlerDökümü[Çek Tutarı],GiderlerDökümü[GM Kodu],AylıkGiderlerÖzeti[[#This Row],[GM Kodu]],GiderlerDökümü[Fatura Tarihi],\">=\"&E$3,GiderlerDökümü[Fatura Tarihi],\"<=\"&E$4)+SUMIFS(Diğer[Çek Tutarı],Diğer[GM Kodu],AylıkGiderlerÖzeti[[#This Row],[GM Kodu]],Diğer[Çek İsteğinin Başlangıç Tarihi],\">=\"&DATEVALUE(\"1.\"&AylıkGiderlerÖzeti[[#Headers],[Şubat]]&_xlfn.SINGLE(_YIL)),Diğer[Çek İsteğinin Başlangıç Tarihi],\"<=\"&E$4)","v":{"v":0,"d":"0.00 ₺"}},{"$f":"SUMIFS(GiderlerDökümü[Çek Tutarı],GiderlerDökümü[GM Kodu],AylıkGiderlerÖzeti[[#This Row],[GM Kodu]],GiderlerDökümü[Fatura Tarihi],\">=\"&F$3,GiderlerDökümü[Fatura Tarihi],\"<=\"&F$4)+SUMIFS(Diğer[Çek Tutarı],Diğer[GM Kodu],AylıkGiderlerÖzeti[[#This Row],[GM Kodu]],Diğer[Çek İsteğinin Başlangıç Tarihi],\">=\"&DATEVALUE(\"1.\"&AylıkGiderlerÖzeti[[#Headers],[Mart]]&_xlfn.SINGLE(_YIL)),Diğer[Çek İsteğinin Başlangıç Tarihi],\"<=\"&F$4)","v":{"v":0,"d":"0.00 ₺"}},{"$f":"SUMIFS(GiderlerDökümü[Çek Tutarı],GiderlerDökümü[GM Kodu],AylıkGiderlerÖzeti[[#This Row],[GM Kodu]],GiderlerDökümü[Fatura Tarihi],\">=\"&G$3,GiderlerDökümü[Fatura Tarihi],\"<=\"&G$4)+SUMIFS(Diğer[Çek Tutarı],Diğer[GM Kodu],AylıkGiderlerÖzeti[[#This Row],[GM Kodu]],Diğer[Çek İsteğinin Başlangıç Tarihi],\">=\"&DATEVALUE(\"1.\"&AylıkGiderlerÖzeti[[#Headers],[Nisan]]&_xlfn.SINGLE(_YIL)),Diğer[Çek İsteğinin Başlangıç Tarihi],\"<=\"&G$4)","v":{"v":0,"d":"0.00 ₺"}},{"$f":"SUMIFS(GiderlerDökümü[Çek Tutarı],GiderlerDökümü[GM Kodu],AylıkGiderlerÖzeti[[#This Row],[GM Kodu]],GiderlerDökümü[Fatura Tarihi],\">=\"&H$3,GiderlerDökümü[Fatura Tarihi],\"<=\"&H$4)+SUMIFS(Diğer[Çek Tutarı],Diğer[GM Kodu],AylıkGiderlerÖzeti[[#This Row],[GM Kodu]],Diğer[Çek İsteğinin Başlangıç Tarihi],\">=\"&DATEVALUE(\"1.\"&AylıkGiderlerÖzeti[[#Headers],[Mayıs]]&_xlfn.SINGLE(_YIL)),Diğer[Çek İsteğinin Başlangıç Tarihi],\"<=\"&H$4)","v":{"v":0,"d":"0.00 ₺"}},{"$f":"SUMIFS(GiderlerDökümü[Çek Tutarı],GiderlerDökümü[GM Kodu],AylıkGiderlerÖzeti[[#This Row],[GM Kodu]],GiderlerDökümü[Fatura Tarihi],\">=\"&I$3,GiderlerDökümü[Fatura Tarihi],\"<=\"&I$4)+SUMIFS(Diğer[Çek Tutarı],Diğer[GM Kodu],AylıkGiderlerÖzeti[[#This Row],[GM Kodu]],Diğer[Çek İsteğinin Başlangıç Tarihi],\">=\"&DATEVALUE(\"1.\"&AylıkGiderlerÖzeti[[#Headers],[Haziran]]&_xlfn.SINGLE(_YIL)),Diğer[Çek İsteğinin Başlangıç Tarihi],\"<=\"&I$4)","v":{"v":0,"d":"0.00 ₺"}},{"$f":"SUMIFS(GiderlerDökümü[Çek Tutarı],GiderlerDökümü[GM Kodu],AylıkGiderlerÖzeti[[#This Row],[GM Kodu]],GiderlerDökümü[Fatura Tarihi],\">=\"&J$3,GiderlerDökümü[Fatura Tarihi],\"<=\"&J$4)+SUMIFS(Diğer[Çek Tutarı],Diğer[GM Kodu],AylıkGiderlerÖzeti[[#This Row],[GM Kodu]],Diğer[Çek İsteğinin Başlangıç Tarihi],\">=\"&DATEVALUE(\"1.\"&AylıkGiderlerÖzeti[[#Headers],[Temmuz]]&_xlfn.SINGLE(_YIL)),Diğer[Çek İsteğinin Başlangıç Tarihi],\"<=\"&J$4)","v":{"v":0,"d":"0.00 ₺"}},{"$f":"SUMIFS(GiderlerDökümü[Çek Tutarı],GiderlerDökümü[GM Kodu],AylıkGiderlerÖzeti[[#This Row],[GM Kodu]],GiderlerDökümü[Fatura Tarihi],\">=\"&K$3,GiderlerDökümü[Fatura Tarihi],\"<=\"&K$4)+SUMIFS(Diğer[Çek Tutarı],Diğer[GM Kodu],AylıkGiderlerÖzeti[[#This Row],[GM Kodu]],Diğer[Çek İsteğinin Başlangıç Tarihi],\">=\"&DATEVALUE(\"1.\"&AylıkGiderlerÖzeti[[#Headers],[Ağustos]]&_xlfn.SINGLE(_YIL)),Diğer[Çek İsteğinin Başlangıç Tarihi],\"<=\"&K$4)","v":{"v":0,"d":"0.00 ₺"}},{"$f":"SUMIFS(GiderlerDökümü[Çek Tutarı],GiderlerDökümü[GM Kodu],AylıkGiderlerÖzeti[[#This Row],[GM Kodu]],GiderlerDökümü[Fatura Tarihi],\">=\"&L$3,GiderlerDökümü[Fatura Tarihi],\"<=\"&L$4)+SUMIFS(Diğer[Çek Tutarı],Diğer[GM Kodu],AylıkGiderlerÖzeti[[#This Row],[GM Kodu]],Diğer[Çek İsteğinin Başlangıç Tarihi],\">=\"&DATEVALUE(\"1.\"&AylıkGiderlerÖzeti[[#Headers],[Eylül]]&_xlfn.SINGLE(_YIL)),Diğer[Çek İsteğinin Başlangıç Tarihi],\"<=\"&L$4)","v":{"v":0,"d":"0.00 ₺"}},{"$f":"SUMIFS(GiderlerDökümü[Çek Tutarı],GiderlerDökümü[GM Kodu],AylıkGiderlerÖzeti[[#This Row],[GM Kodu]],GiderlerDökümü[Fatura Tarihi],\">=\"&M$3,GiderlerDökümü[Fatura Tarihi],\"<=\"&M$4)+SUMIFS(Diğer[Çek Tutarı],Diğer[GM Kodu],AylıkGiderlerÖzeti[[#This Row],[GM Kodu]],Diğer[Çek İsteğinin Başlangıç Tarihi],\">=\"&DATEVALUE(\"1.\"&AylıkGiderlerÖzeti[[#Headers],[Ekim]]&_xlfn.SINGLE(_YIL)),Diğer[Çek İsteğinin Başlangıç Tarihi],\"<=\"&M$4)","v":{"v":0,"d":"0.00 ₺"}},{"$f":"SUMIFS(GiderlerDökümü[Çek Tutarı],GiderlerDökümü[GM Kodu],AylıkGiderlerÖzeti[[#This Row],[GM Kodu]],GiderlerDökümü[Fatura Tarihi],\">=\"&N$3,GiderlerDökümü[Fatura Tarihi],\"<=\"&N$4)+SUMIFS(Diğer[Çek Tutarı],Diğer[GM Kodu],AylıkGiderlerÖzeti[[#This Row],[GM Kodu]],Diğer[Çek İsteğinin Başlangıç Tarihi],\">=\"&DATEVALUE(\"1.\"&AylıkGiderlerÖzeti[[#Headers],[Kasım]]&_xlfn.SINGLE(_YIL)),Diğer[Çek İsteğinin Başlangıç Tarihi],\"<=\"&N$4)","v":{"v":0,"d":"0.00 ₺"}},{"$f":"SUMIFS(GiderlerDökümü[Çek Tutarı],GiderlerDökümü[GM Kodu],AylıkGiderlerÖzeti[[#This Row],[GM Kodu]],GiderlerDökümü[Fatura Tarihi],\">=\"&O$3,GiderlerDökümü[Fatura Tarihi],\"<=\"&O$4)+SUMIFS(Diğer[Çek Tutarı],Diğer[GM Kodu],AylıkGiderlerÖzeti[[#This Row],[GM Kodu]],Diğer[Çek İsteğinin Başlangıç Tarihi],\">=\"&DATEVALUE(\"1.\"&AylıkGiderlerÖzeti[[#Headers],[Aralık]]&_xlfn.SINGLE(_YIL)),Diğer[Çek İsteğinin Başlangıç Tarihi],\"<=\"&O$4)","v":{"v":0,"d":"0.00 ₺"}},{"$f":"SUM(AylıkGiderlerÖzeti[[#This Row],[Ocak]:[Aralık]])","v":{"v":0,"d":"0.00 ₺"}}]
[null,"Toplam",null,{"$f":"SUBTOTAL(109,AylıkGiderlerÖzeti[Ocak])","v":{"v":0,"d":"0.00 ₺"}},{"$f":"SUBTOTAL(109,AylıkGiderlerÖzeti[Şubat])","v":{"v":0,"d":"0.00 ₺"}},{"$f":"SUBTOTAL(109,AylıkGiderlerÖzeti[Mart])","v":{"v":0,"d":"0.00 ₺"}},{"$f":"SUBTOTAL(109,AylıkGiderlerÖzeti[Nisan])","v":{"v":0,"d":"0.00 ₺"}},{"$f":"SUBTOTAL(109,AylıkGiderlerÖzeti[Mayıs])","v":{"v":0,"d":"0.00 ₺"}},{"$f":"SUBTOTAL(109,AylıkGiderlerÖzeti[Haziran])","v":{"v":0,"d":"0.00 ₺"}},{"$f":"SUBTOTAL(109,AylıkGiderlerÖzeti[Temmuz])","v":{"v":0,"d":"0.00 ₺"}},{"$f":"SUBTOTAL(109,AylıkGiderlerÖzeti[Ağustos])","v":{"v":0,"d":"0.00 ₺"}},{"$f":"SUBTOTAL(109,AylıkGiderlerÖzeti[Eylül])","v":{"v":0,"d":"0.00 ₺"}},{"$f":"SUBTOTAL(109,AylıkGiderlerÖzeti[Ekim])","v":{"v":0,"d":"0.00 ₺"}},{"$f":"SUBTOTAL(109,AylıkGiderlerÖzeti[Kasım])","v":{"v":0,"d":"0.00 ₺"}},{"$f":"SUBTOTAL(109,AylıkGiderlerÖzeti[Aralık])","v":{"v":0,"d":"0.00 ₺"}},{"$f":"SUBTOTAL(109,AylıkGiderlerÖzeti[Toplam])","v":{"v":0,"d":"0.00 ₺"}}]

{"sheet":"GİDER DÖKÜMÜ","index":2,"n_rows":6,"n_cols":10,"rows_kept":6,"merged":[[1,1,1,9],[2,1,2,5],[2,6,2,9]]}
[null,"AYLIK GİDERLER ÖZETİ","HAYIR İŞLERİ VE SPONSORLUKLAR"]
[null,"GİDER DÖKÜMÜ"]
[null,"Verileri İsteyen Kişiye göre filtreleyecek dilimleyici bu hücrede, Alacaklıya göre filtreleyecek dilimleyici sağdadır.",{"$nulls":4},"Verileri Alacaklıya göre filtreleyecek dilimleyici bu hücrededir."]
[null,"GM Kodu","Fatura Tarihi","Fatura No","İsteyen:","Çek Tutarı","Alacaklı","Çek Kullanımı","Dağıtım Yöntemi","Kayıt Tarihi"]
[null,1000,"Tarih",100,"Ahmet Demir",{"v":750.75,"d":"750.75 ₺"},"Consolidated Messenger ","Posta Göndericisi","Posta","Tarih"]
[null,7000,"Tarih",101,"Recep Özkan",{"v":2500,"d":"2,500.00 ₺"},"A. Datum Corporation ","2 masaüstü bilgisayar","Kredi","Tarih"]

{"sheet":"HAYIR İŞLERİ VE SPONSORLUKLAR","index":3,"n_rows":6,"n_cols":12,"rows_kept":6,"merged":[[1,1,1,11],[2,1,2,5],[2,6,2,11]]}
[null,"GİDER DÖKÜMÜ"]
[null,"HAYIR İŞLERİ VE SPONSORLUKLAR"]
[null,"Verileri İsteyen Kişiye göre filtreleyecek dilimleyici bu hücrede, Alacaklıya göre filtreleyecek dilimleyici sağdadır.",{"$nulls":4},"Verileri Alacaklıya göre filtreleyecek dilimleyici bu hücrededir."]
[null,"GM Kodu","Çek İsteğinin Başlangıç Tarihi","İsteyen:","Çek Tutarı","Geçen Yılın Katılımı","Alacaklı","Kullanıldığı Alan:","İmzalayan:","Kategori","Dağıtım Yöntemi","Kayıt Tarihi"]
[null,12000,"Tarih","Sultan M. Özdemir",{"v":1000,"d":"1,000.00 ₺"},{"v":12,"d":"12.00 ₺"},"Güzel Sanatlar Okulu ","Burslar","Demet Acar","Sanat","Çek","Tarih"]
[null,11000,"Tarih","Sultan M. Özdemir",{"v":2500,"d":"2,500.00 ₺"},{"v":0,"d":"0.00 ₺"},"WingTip Toys ","Topluluk","Şerife Elmas","Topluluk","Çek","Tarih"]